Department,Entity, Transaction Date, Expense Type, Expense Area, Supplier Name,Transaction number, Amount, Invoice Description
DFID,CSC,01/03/2019,Scholar Allowances,Award Costs,Scholar,PIN038159,839.64,
DFID,CSC,01/03/2019,Scholar Allowances,Award Costs,Scholar,PIN038159,424.37,
DFID,CSC,01/03/2019,Scholar Engagement,Programme Costs,CLARKES OF LONDON,PIN038160,1368,
DFID,CSC,01/03/2019,Tuition Fee,Award Costs,University of Teesside,PIN038162,12045,
DFID,CSC,01/03/2019,Tuition Fee,Award Costs,University of Teesside,PIN038163,12045,
DFID,CSC,01/03/2019,Tuition Fee,Award Costs,University of Teesside,PIN038164,12045,
DFID,CSC,01/03/2019,Tuition Fee,Award Costs,University of Teesside,PIN038165,12045,
DFID,CSC,01/03/2019,Tuition Fee,Award Costs,University of Aberdeen,PIN038166,2250,
DFID,CSC,01/03/2019,Tuition Fee,Award Costs,University of Aberdeen,PIN038167,3000,
BEIS,CSC,01/03/2019,Scholar Allowances,Award Costs,Scholar,PIN038168,1000,
DFID,CSC,01/03/2019,Scholar Allowances,Award Costs,Scholar,PIN038169,1000,
DFID,CSC,01/03/2019,Scholar Allowances,Award Costs,Scholar,PIN038171,600,
BEIS,CSC,01/03/2019,Scholar Allowances,Award Costs,Scholar,PIN038174,1000,
DFID,CSC,01/03/2019,Scholar Travel,Award Costs,Diversity Travel,PIN038180,541.47,
DFID,CSC,01/03/2019,Fieldwork Airfare,Award Costs,Diversity Travel,PIN038180,759.01,
DFID,CSC,01/03/2019,Scholar Travel,Award Costs,Diversity Travel,PIN038180,722.42,
DFID,CSC,01/03/2019,Award Support Costs,Award Costs,The University of Leeds,PIN038181,4500,
DFID,CSC,01/03/2019,Tuition Fee,Award Costs,University College London Fees,PIN038182,912,
DFID,CSC,01/03/2019,Tuition Fee,Award Costs,University College London Fees,PIN038183,11069.09,
DFID,CSC,01/03/2019,Award Support Costs,Award Costs,The University of York,PIN038184,9750,
DFID,CSC,01/03/2019,Tuition Fee,Award Costs,University of Exeter,PIN038185,800,
BEIS,CSC,01/03/2019,Award Support Costs,Award Costs,Lancaster University,PIN038186,2500,
DFID,CSC,01/03/2019,Tuition Fee,Award Costs,University of the West of England Bristol,PIN038187,10400,
DFID,CSC,01/03/2019,Tuition Fee,Award Costs,University of Manchester,PIN038188,16800,
DFID,CSC,01/03/2019,Award Support Costs,Award Costs,The University of Leeds,PIN038189,4500,
DFID,CSC,01/03/2019,Tuition Fee,Award Costs,University of Greenwich,PIN038190,9900,
DFID,CSC,01/03/2019,Tuition Fee,Award Costs,University of the West of England Bristol,PIN038191,10400,
DFID,CSC,01/03/2019,Award Support Costs,Award Costs,The University of Leeds,PIN038192,4000,
DFID,CSC,01/03/2019,Award Support Costs,Award Costs,University of East Anglia,PIN038193,4500,
DFID,CSC,01/03/2019,Award Support Costs,Award Costs,University of Kent,PIN038194,3481.51,
DFID,CSC,01/03/2019,Award Support Costs,Award Costs,University College London,PIN038195,5000,
BEIS,CSC,01/03/2019,Award Support Costs,Award Costs,University of Southampton,PIN038196,2500,
DFID,CSC,01/03/2019,Award Support Costs,Award Costs,University of Sheffield,PIN038197,3000,
DFID,CSC,01/03/2019,Tuition Fee,Award Costs,The University of Nottingham,PIN038198,18000,
DFID,CSC,01/03/2019,Scholar Allowances,Award Costs,BATH SPA UNIVERSITY,PIN038199,200,
DFID,CSC,01/03/2019,Scholar Travel,Award Costs,BATH SPA UNIVERSITY,PIN038199,514.22,
DFID,CSC,01/03/2019,Visa Costs,Award Costs,University of Bath,PIN038200,66.65,
DFID,CSC,01/03/2019,Scholar Travel,Award Costs,University of Bath,PIN038200,434.2,
DFID,CSC,01/03/2019,Scholar Allowances,Award Costs,University of Bath,PIN038200,200,
DFID,CSC,01/03/2019,Scholar Allowances,Award Costs,University of Bath,PIN038200,225,
DFID,CSC,01/03/2019,Tuition Fee,Award Costs,University of Bath,PIN038200,21100,
DFID,CSC,01/03/2019,Tuition Fee,Award Costs,University of Wolverhampton,PIN038201,12700,
DFID,CSC,01/03/2019,Tuition Fee,Award Costs,University of Wolverhampton,PIN038202,12700,
DFID,CSC,01/03/2019,Tuition Fee,Award Costs,University of Wolverhampton,PIN038203,12700,
DFID,CSC,01/03/2019,Tuition Fee,Award Costs,University of Wolverhampton,PIN038204,12700,
DFID,CSC,01/03/2019,Tuition Fee,Award Costs,University of Newcastle upon Tyne,PIN038205,7920,
DFID,CSC,01/03/2019,Tuition Fee,Award Costs,University of Bristol,PIN038206,8280,
DFID,CSC,01/03/2019,Award Support Costs,Award Costs,University of Hull,PIN038207,5000,
DFID,CSC,01/03/2019,Tuition Fee,Award Costs,University College London Fees,PIN038209,14664,
DFID,CSC,01/03/2019,Tuition Fee,Award Costs,University College London Fees,PIN038210,3336,
DFID,CSC,01/03/2019,Scholar Travel,Award Costs,University of Wolverhampton,PIN038211,570.6,
DFID,CSC,01/03/2019,Visa Costs,Award Costs,University of Wolverhampton,PIN038211,115.03,
DFID,CSC,01/03/2019,Scholar Travel,Award Costs,University of Wolverhampton,PIN038212,424.7,
DFID,CSC,01/03/2019,Visa Costs,Award Costs,University of Wolverhampton,PIN038212,114.31,
DFID,CSC,01/03/2019,Scholar Travel,Award Costs,University of Wolverhampton,PIN038213,8.9,
DFID,CSC,01/03/2019,Scholar Travel,Award Costs,University of Wolverhampton,PIN038213,565.9,
DFID,CSC,01/03/2019,Visa Costs,Award Costs,University of Wolverhampton,PIN038213,69.81,
DFID,CSC,01/03/2019,Visa Costs,Award Costs,University of Bath,PIN038214,100.54,
DFID,CSC,01/03/2019,Scholar Travel,Award Costs,University of Bath,PIN038214,280.3,
DFID,CSC,01/03/2019,Scholar Allowances,Award Costs,University of Bath,PIN038214,200,
DFID,CSC,01/03/2019,Scholar Allowances,Award Costs,University of Bath,PIN038214,225,
DFID,CSC,01/03/2019,Tuition Fee,Award Costs,University of Bath,PIN038214,21100,
DFID,CSC,01/03/2019,Scholar Allowances,Award Costs,University College London,PIN038216,1025,
DFID,CSC,01/03/2019,Scholar Travel,Award Costs,University College London,PIN038216,2591.19,
DFID,CSC,01/03/2019,Scholar Engagement,Programme Costs,Central Hall Westminster Limited,PIN038218,600,
DFID,CSC,01/03/2019,Scholar Engagement,Programme Costs,Central Hall Westminster Limited,PIN038218,3000,
DFID,CSC,01/03/2019,Scholar Allowances,Award Costs,Scholar,PIN038220,300,
DFID,CSC,01/03/2019,Scholar Stipend,Award Costs,Scholar,PIN038220,480.79,
BEIS,CSC,01/03/2019,Scholar Stipend,Award Costs,Scholar,PIN038221,3071.54,
DFID,CSC,01/03/2019,Scholar Allowances,Award Costs,Scholar,PIN038224,806.17,
DFID,CSC,08/03/2019,Tuition Fee,Award Costs,University of Liverpool,PIN038234,43999.67,Tuition fees for 9 scholars
BEIS,CSC,08/03/2019,Scholar Allowances,Award Costs,Scholar,PIN038236,568.67,
BEIS,CSC,08/03/2019,Scholar Allowances,Award Costs,Scholar,PIN038238,1000,
DFID,CSC,08/03/2019,Scholar Allowances,Award Costs,Scholar,PIN038240,600,
DFID,CSC,08/03/2019,Scholar Allowances,Award Costs,Scholar,PIN038242,600,
BEIS,CSC,08/03/2019,Scholar Allowances,Award Costs,Scholar,PIN038243,1000,
BEIS,CSC,08/03/2019,Scholar Allowances,Award Costs,Scholar,PIN038244,1000,
BEIS,CSC,08/03/2019,Scholar Allowances,Award Costs,Scholar,PIN038245,800,
DFID,CSC,08/03/2019,Scholar Allowances,Award Costs,Scholar,PIN038247,600,
BEIS,CSC,08/03/2019,Scholar Allowances,Award Costs,Scholar,PIN038248,600,
DFID,CSC,08/03/2019,Tuition Fee,Award Costs,Aston University,PIN038253,13240,
DFID,CSC,08/03/2019,Award Support Costs,Award Costs,Aston University,PIN038254,4000,
DFID,CSC,08/03/2019,Tuition Fee,Award Costs,Bangor University,PIN038255,11840,
DFID,CSC,08/03/2019,Tuition Fee,Award Costs,The University of Leeds,PIN038256,187000,Tuition fees for 9 scholars
DFID,CSC,08/03/2019,Scholar Travel,Award Costs,University of Strathclyde,PIN038257,1836.75,
DFID,CSC,08/03/2019,Scholar Travel,Award Costs,University of Strathclyde,PIN038257,5813.14,
DFID,CSC,08/03/2019,Tuition Fee,Award Costs,Bangor University,PIN038258,15200,
DFID,CSC,08/03/2019,Visa Costs,Award Costs,The University of Leeds,PIN038259,579,
DFID,CSC,08/03/2019,Tuition Fee,Award Costs,Univ of Central Lancashire,PIN038260,10950,
DFID,CSC,08/03/2019,Tuition Fee,Award Costs,Univ of Central Lancashire,PIN038261,3000,
DFID,CSC,08/03/2019,Award Support Costs,Award Costs,University of Glasgow,PIN038262,13903.16,
DFID,CSC,08/03/2019,Tuition Fee,Award Costs,University of Exeter,PIN038263,13120,
DFID,CSC,08/03/2019,Tuition Fee,Award Costs,Cardiff University,PIN038264,12064,
DFID,CSC,08/03/2019,Tuition Fee,Award Costs,University of Bristol,PIN038265,15760,
DFID,CSC,08/03/2019,Award Support Costs,Award Costs,The University of Nottingham,PIN038267,4250,
DFID,CSC,08/03/2019,Tuition Fee,Award Costs,Bangor University,PIN038268,11600,
DFID,CSC,08/03/2019,Award Support Costs,Award Costs,Bangor University,PIN038268,2000,
DFID,CSC,08/03/2019,Tuition Fee,Award Costs,Bangor University,PIN038269,15200,
DFID,CSC,08/03/2019,Tuition Fee,Award Costs,University of Liverpool,PIN038270,5008,
DFID,CSC,08/03/2019,Tuition Fee,Award Costs,University of Liverpool,PIN038271,18000,
DFID,CSC,08/03/2019,Scholar Travel,Award Costs,University of Bath,PIN038272,533.12,
DFID,CSC,08/03/2019,Scholar Travel,Award Costs,University of Bath,PIN038272,12,
DFID,CSC,08/03/2019,Scholar Allowances,Award Costs,University of Bath,PIN038272,250,
DFID,CSC,08/03/2019,Scholar Engagement,Programme Costs,TFW Printers,PIN038274,137.84,
DFID,CSC,08/03/2019,Scholar Engagement,Programme Costs,TFW Printers,PIN038274,689.2,
DFID,CSC,12/03/2019,Scholar Allowances,Award Costs,Scholar,PIN038276,300,
DFID,CSC,12/03/2019,Scholar Stipend,Award Costs,Scholar,PIN038276,356.13,
DFID,CSC,15/03/2019,Scholar Engagement,Programme Costs,The Royal Society,PIN038277,542.5,
DFID,CSC,15/03/2019,Scholar Engagement,Programme Costs,The Royal Society,PIN038277,2712.5,
DFID,CSC,15/03/2019,Tuition Fee,Award Costs,University of Liverpool,PIN038280,57435,Tuition fees for 14 scholars
DFID,CSC,15/03/2019,Tuition Fee,Award Costs,The Open University,PIN038281,7548.55,
DFID,CSC,15/03/2019,Tuition Fee,Award Costs,Leeds Beckett University,PIN038282,23796.66,
DFID,CSC,15/03/2019,Tuition Fee,Award Costs,Leeds Beckett University,PIN038282,19883.33,
DFID,CSC,15/03/2019,Tuition Fee,Award Costs,Bangor University,PIN038283,12500,
DFID,CSC,15/03/2019,Tuition Fee,Award Costs,Bangor University,PIN038283,53500,Tuition fees for 27 scholars
DFID,CSC,15/03/2019,Tuition Fee,Award Costs,University of Stirling,PIN038284,-1380,
DFID,CSC,15/03/2019,Tuition Fee,Award Costs,University of Stirling,PIN038285,1517,
DFID,CSC,15/03/2019,Tuition Fee,Award Costs,University of Stirling,PIN038286,1517,
DFID,CSC,15/03/2019,Tuition Fee,Award Costs,University of Stirling,PIN038287,1517,
DFID,CSC,15/03/2019,Tuition Fee,Award Costs,University of Stirling,PIN038288,1517,
DFID,CSC,15/03/2019,Tuition Fee,Award Costs,University of Teesside,PIN038289,10545,
DFID,CSC,15/03/2019,Tuition Fee,Award Costs,The Open University,PIN038290,1920,
DFID,CSC,15/03/2019,Tuition Fee,Award Costs,The Open University,PIN038290,21120,
DFID,CSC,15/03/2019,Scholar Travel,Award Costs,Diversity Travel,PIN038291,447.2,
DFID,CSC,15/03/2019,Fieldwork Airfare,Award Costs,Diversity Travel,PIN038291,569.2,
DFID,CSC,15/03/2019,Fieldwork Airfare,Award Costs,Diversity Travel,PIN038291,1032.93,
BEIS,CSC,15/03/2019,Scholar Allowances,Award Costs,Scholar,PIN038292,1000,
BEIS,CSC,15/03/2019,Scholar Allowances,Award Costs,Scholar,PIN038294,800,
BEIS,CSC,15/03/2019,Scholar Allowances,Award Costs,Scholar,PIN038295,1000,
BEIS,CSC,15/03/2019,Scholar Allowances,Award Costs,Scholar,PIN038297,970,
BEIS,CSC,15/03/2019,Scholar Allowances,Award Costs,Scholar,PIN038299,1000,
DFID,CSC,15/03/2019,Scholar Allowances,Award Costs,Scholar,PIN038300,600,
BEIS,CSC,15/03/2019,Scholar Allowances,Award Costs,Scholar,PIN038302,1000,
DFID,CSC,15/03/2019,Scholar Allowances,Award Costs,Leeds Beckett University,PIN038306,141.1,
DFID,CSC,15/03/2019,Scholar Allowances,Award Costs,Leeds Beckett University,PIN038306,225,
DFID,CSC,15/03/2019,Scholar Allowances,Award Costs,Leeds Beckett University,PIN038306,200,
DFID,CSC,15/03/2019,Scholar Travel,Award Costs,Leeds Beckett University,PIN038306,680.7,
DFID,CSC,15/03/2019,Tuition Fee,Award Costs,University of Strathclyde,PIN038307,150000,Tuition fees for 8 scholars
DFID,CSC,15/03/2019,Award Support Costs,Award Costs,The University of Leeds,PIN038309,4500,
DFID,CSC,15/03/2019,Tuition Fee,Award Costs,The University of Leeds,PIN038309,8600,
DFID,CSC,15/03/2019,Scholar Allowances,Award Costs,The University of Leeds,PIN038310,1500,
DFID,CSC,15/03/2019,Scholar Travel,Award Costs,The University of Leeds,PIN038310,2870.12,
DFID,CSC,15/03/2019,Scholar Travel,Award Costs,"St Mary's University, Twickenham, London",PIN038311,537.42,
DFID,CSC,15/03/2019,Tuition Fee,Award Costs,University of Liverpool,PIN038312,12280,
DFID,CSC,15/03/2019,Award Support Costs,Award Costs,Lond Sch Hygiene & Tropical Me,PIN038313,5000,
DFID,CSC,15/03/2019,Tuition Fee,Award Costs,The University of Birmingham,PIN038314,18000,
DFID,CSC,15/03/2019,Award Support Costs,Award Costs,University of Bristol,PIN038315,5000,
DFID,CSC,15/03/2019,Tuition Fee,Award Costs,The Cambridge Commonwealth Trust,PIN038316,18000,
DFID,CSC,15/03/2019,Tuition Fee,Award Costs,Roehampton University,PIN038317,10816,
DFID,CSC,15/03/2019,Scholar Allowances,Award Costs,Liverpool John Moores University,PIN038318,100,
DFID,CSC,15/03/2019,Scholar Allowances,Award Costs,Liverpool John Moores University,PIN038318,450,
DFID,CSC,15/03/2019,Scholar Travel,Award Costs,Liverpool John Moores University,PIN038318,818.69,
DFID,CSC,15/03/2019,Tuition Fee,Award Costs,University of Newcastle upon Tyne,PIN038319,11520,
BEIS,CSC,15/03/2019,Award Support Costs,Award Costs,University of Bath,PIN038321,2500,
BEIS,CSC,15/03/2019,Award Support Costs,Award Costs,Lond Sch Hygiene & Tropical Me,PIN038322,2500,
BEIS,CSC,15/03/2019,Award Support Costs,Award Costs,The University of Leeds,PIN038323,2500,
DFID,CSC,15/03/2019,Scholar Travel,Award Costs,Leeds Beckett University,PIN038324,37.8,
DFID,CSC,15/03/2019,Scholar Allowances,Award Costs,Leeds Beckett University,PIN038324,200,
DFID,CSC,15/03/2019,Scholar Travel,Award Costs,Leeds Beckett University,PIN038324,488.29,
DFID,CSC,15/03/2019,Scholar Travel,Award Costs,University of Bath,PIN038325,602.2,
DFID,CSC,15/03/2019,Scholar Allowances,Award Costs,University of Bath,PIN038325,200,
DFID,CSC,15/03/2019,Scholar Allowances,Award Costs,University of Bath,PIN038325,225,
DFID,CSC,15/03/2019,Tuition Fee,Award Costs,University of Bath,PIN038325,17700,
DFID,CSC,15/03/2019,Award Support Costs,Award Costs,University of Greenwich,PIN038326,5000,
DFID,CSC,15/03/2019,Scholar Travel,Award Costs,The University of Nottingham,PIN038327,328.9,
DFID,CSC,15/03/2019,Scholar Travel,Award Costs,The University of Nottingham,PIN038327,3762.6,
DFID,CSC,15/03/2019,Scholar Allowances,Award Costs,The University of Nottingham,PIN038327,3375,
DFID,CSC,15/03/2019,Scholar Allowances,Award Costs,The University of Nottingham,PIN038327,3000,
DFID,CSC,15/03/2019,Scholar Allowances,Award Costs,The University of Nottingham,PIN038327,1490,
DFID,CSC,15/03/2019,Scholar Travel,Award Costs,The University of Nottingham,PIN038327,183.5,
DFID,CSC,15/03/2019,Visa Costs,Award Costs,The University of Nottingham,PIN038327,517.01,
DFID,CSC,15/03/2019,Scholar Travel,Award Costs,The University of Nottingham,PIN038327,3535.06,
DFID,CSC,15/03/2019,Scholar Allowances,Award Costs,The University of Leeds,PIN038328,1500,
DFID,CSC,15/03/2019,Scholar Travel,Award Costs,The University of Leeds,PIN038328,2870.12,
DFID,CSC,15/03/2019,Tuition Fee,Award Costs,University of Strathclyde,PIN038331,-56250,
DFID,CSC,15/03/2019,Scholar Stipend,Award Costs,Scholar,PIN038334,546.58,
DFID,CSC,15/03/2019,Scholar Stipend,Award Costs,Scholar,PIN038335,1084,
DFID,CSC,22/03/2019,Engagement,Programme Costs,DigitalMyWay,PIN038341,2500,
DFID,CSC,22/03/2019,Tuition Fee,Award Costs,The University of Edinburgh,PIN038342,4495,
DFID,CSC,22/03/2019,Tuition Fee,Award Costs,The University of Edinburgh,PIN038343,3280,
BEIS,CSC,22/03/2019,Scholar Allowances,Award Costs,Scholar,PIN038345,930,
DFID,CSC,22/03/2019,Scholar Allowances,Award Costs,Scholar,PIN038348,600,
BEIS,CSC,22/03/2019,Scholar Allowances,Award Costs,Scholar,PIN038351,800,
BEIS,CSC,22/03/2019,Scholar Allowances,Award Costs,Scholar,PIN038353,1000,
DFID,CSC,22/03/2019,Immigration Health Surcharge,Award Costs,Scholar,PIN038355,150,
DFID,CSC,22/03/2019,Visa Costs,Award Costs,Scholar,PIN038355,554.2,
DFID,CSC,22/03/2019,Scholar Stipend,Award Costs,Scholar,PIN038357,705.89,
BEIS,CSC,22/03/2019,Scholar Allowances,Award Costs,Scholar,PIN038358,822.7,
DFID,CSC,22/03/2019,Scholar Travel,Award Costs,Diversity Travel,PIN038359,615.1,
DFID,CSC,22/03/2019,Scholar Travel,Award Costs,Diversity Travel,PIN038359,826.57,
DFID,CSC,22/03/2019,Scholar Travel,Award Costs,Diversity Travel,PIN038359,936.12,
DFID,CSC,22/03/2019,Scholar Travel,Award Costs,Diversity Travel,PIN038359,645.91,
DFID,CSC,22/03/2019,Scholar Travel,Award Costs,Diversity Travel,PIN038359,1124.12,
BEIS,CSC,22/03/2019,Scholar Travel,Award Costs,Diversity Travel,PIN038360,31.9,
BEIS,CSC,22/03/2019,Scholar Travel,Award Costs,Diversity Travel,PIN038360,336.8,
DFID,CSC,22/03/2019,Scholar Travel,Award Costs,Diversity Travel,PIN038360,439.3,
DFID,CSC,22/03/2019,Scholar Travel,Award Costs,Diversity Travel,PIN038360,761.71,
DFID,CSC,22/03/2019,Scholar Travel,Award Costs,Diversity Travel,PIN038360,483.16,
DFID,CSC,22/03/2019,Scholar Travel,Award Costs,Diversity Travel,PIN038360,-20.4,
BEIS,CSC,22/03/2019,Scholar Travel,Award Costs,Diversity Travel,PIN038360,445.2,
BEIS,CSC,22/03/2019,Scholar Travel,Award Costs,Diversity Travel,PIN038360,344.8,
DFID,CSC,22/03/2019,Tuition Fee,Award Costs,Heriot Watt University,PIN038361,18120,
DFID,CSC,22/03/2019,Award Support Costs,Award Costs,University of Aberdeen,PIN038362,2000,
DFID,CSC,22/03/2019,Tuition Fee,Award Costs,University of Aberdeen,PIN038362,15120,
DFID,CSC,22/03/2019,Tuition Fee,Award Costs,Heriot Watt University,PIN038363,14520,
DFID,CSC,22/03/2019,Tuition Fee,Award Costs,Heriot Watt University,PIN038364,14520,
DFID,CSC,22/03/2019,Tuition Fee,Award Costs,Heriot Watt University,PIN038365,18120,
DFID,CSC,22/03/2019,Award Support Costs,Award Costs,University of Aberdeen,PIN038366,4000,
DFID,CSC,22/03/2019,Award Support Costs,Award Costs,The University of Warwick,PIN038367,5000,
DFID,CSC,22/03/2019,Tuition Fee,Award Costs,University of Sheffield,PIN038368,13800,
DFID,CSC,22/03/2019,Tuition Fee,Award Costs,University of Southampton,PIN038369,23000,
DFID,CSC,22/03/2019,Tuition Fee,Award Costs,University of Southampton,PIN038370,34500,Tuition fees for 6 scholars
DFID,CSC,22/03/2019,Tuition Fee,Award Costs,University of Lincoln,PIN038371,10640,
DFID,CSC,22/03/2019,Scholar Allowances,Award Costs,Scholar,PIN038373,250,
DFID,CSC,22/03/2019,Scholar Stipend,Award Costs,Scholar,PIN038373,285.11,
DFID,CSC,22/03/2019,Scholar Allowances,Award Costs,Scholar,PIN038374,250,
DFID,CSC,22/03/2019,Scholar Stipend,Award Costs,Scholar,PIN038374,516.4,
DFID,CSC,22/03/2019,Scholar Allowances,Award Costs,Scholar,PIN038375,250,
DFID,CSC,22/03/2019,Scholar Stipend,Award Costs,Scholar,PIN038375,320.75,
DFID,CSC,22/03/2019,Commission Meetings,Admin Costs,Commissioner,PIN038382,625,
DFID,CSC,22/03/2019,Commission Meetings,Admin Costs,Commissioner,PIN038386,625,
DFID,CSC,28/03/2019,Scholar Stipend,Award Costs,Scholar,PIN038393,1084,
DFID,CSC,28/03/2019,Scholar Stipend,Award Costs,Scholar,PIN038394,1330,
DFID,CSC,28/03/2019,Scholar Stipend,Award Costs,Scholar,PIN038395,1330,
DFID,CSC,28/03/2019,Scholar Stipend,Award Costs,Scholar,PIN038396,542,
DFID,CSC,28/03/2019,Scholar Stipend,Award Costs,Scholar,PIN038397,542,
DFID,CSC,28/03/2019,Scholar Stipend,Award Costs,Scholar,PIN038398,1084,
DFID,CSC,28/03/2019,Scholar Stipend,Award Costs,Scholar,PIN038399,1084,
DFID,CSC,28/03/2019,Scholar Stipend,Award Costs,Scholar,PIN038400,1084,
BEIS,CSC,28/03/2019,Scholar Stipend,Award Costs,Scholar,PIN038401,4968,
DFID,CSC,28/03/2019,Scholar Stipend,Award Costs,Scholar,PIN038402,542,
DFID,CSC,28/03/2019,Scholar Stipend,Award Costs,Scholar,PIN038403,1084,
DFID,CSC,28/03/2019,Scholar Stipend,Award Costs,Scholar,PIN038404,1084,
DFID,CSC,28/03/2019,Scholar Stipend,Award Costs,Scholar,PIN038405,1084,
DFID,CSC,28/03/2019,Scholar Stipend,Award Costs,Scholar,PIN038406,1084,
DFID,CSC,28/03/2019,Scholar Stipend,Award Costs,Scholar,PIN038407,1084,
DFID,CSC,28/03/2019,Scholar Stipend,Award Costs,Scholar,PIN038408,1330,
DFID,CSC,28/03/2019,Scholar Stipend,Award Costs,Scholar,PIN038409,1084,
DFID,CSC,28/03/2019,Scholar Stipend,Award Costs,Scholar,PIN038410,665,
DFID,CSC,28/03/2019,Scholar Stipend,Award Costs,Scholar,PIN038411,3252,
BEIS,CSC,28/03/2019,Scholar Stipend,Award Costs,Scholar,PIN038412,6165,
DFID,CSC,28/03/2019,Scholar Stipend,Programme Costs,Scholar,PIN038413,1330,
BEIS,CSC,28/03/2019,Scholar Stipend,Award Costs,Scholar,PIN038414,4968,
DFID,CSC,28/03/2019,Scholar Stipend,Award Costs,Scholar,PIN038415,1084,
DFID,CSC,28/03/2019,Scholar Stipend,Award Costs,Scholar,PIN038416,1084,
DFID,CSC,28/03/2019,Scholar Stipend,Award Costs,Scholar,PIN038417,1084,
DFID,CSC,28/03/2019,Scholar Stipend,Award Costs,Scholar,PIN038418,1330,
DFID,CSC,28/03/2019,Scholar Stipend,Award Costs,Scholar,PIN038419,1084,
DFID,CSC,28/03/2019,Scholar Stipend,Award Costs,Scholar,PIN038420,1084,
DFID,CSC,28/03/2019,Scholar Stipend,Award Costs,Scholar,PIN038421,1084,
DFID,CSC,28/03/2019,Scholar Stipend,Award Costs,Scholar,PIN038422,665,
DFID,CSC,28/03/2019,Scholar Stipend,Award Costs,Scholar,PIN038423,1330,
DFID,CSC,28/03/2019,Scholar Stipend,Award Costs,Scholar,PIN038424,1084,
BEIS,CSC,28/03/2019,Scholar Stipend,Award Costs,Scholar,PIN038425,4968,
DFID,CSC,28/03/2019,Scholar Stipend,Award Costs,Scholar,PIN038426,1330,
DFID,CSC,28/03/2019,Scholar Stipend,Award Costs,Scholar,PIN038427,542,
DFID,CSC,28/03/2019,Scholar Stipend,Award Costs,Scholar,PIN038428,1084,
DFID,CSC,28/03/2019,Scholar Stipend,Award Costs,Scholar,PIN038429,1084,
DFID,CSC,28/03/2019,Scholar Stipend,Award Costs,Scholar,PIN038430,1084,
DFID,CSC,28/03/2019,Scholar Stipend,Award Costs,Scholar,PIN038431,1084,
DFID,CSC,28/03/2019,Scholar Stipend,Award Costs,Scholar,PIN038432,1084,
DFID,CSC,28/03/2019,Scholar Stipend,Award Costs,Scholar,PIN038433,1084,
DFID,CSC,28/03/2019,Scholar Stipend,Award Costs,Scholar,PIN038434,1084,
BEIS,CSC,28/03/2019,Scholar Stipend,Award Costs,Scholar,PIN038435,4968,
DFID,CSC,28/03/2019,Scholar Stipend,Award Costs,Scholar,PIN038436,1084,
DFID,CSC,28/03/2019,Scholar Stipend,Award Costs,Scholar,PIN038437,1084,
BEIS,CSC,28/03/2019,Scholar Stipend,Award Costs,Scholar,PIN038438,4968,
BEIS,CSC,28/03/2019,Scholar Stipend,Award Costs,Scholar,PIN038440,4968,
DFID,CSC,28/03/2019,Scholar Stipend,Award Costs,Scholar,PIN038441,1084,
DFID,CSC,28/03/2019,Scholar Stipend,Award Costs,Scholar,PIN038442,1084,
DFID,CSC,28/03/2019,Scholar Stipend,Award Costs,Scholar,PIN038443,1084,
DFID,CSC,28/03/2019,Scholar Stipend,Award Costs,Scholar,PIN038444,1084,
DFID,CSC,28/03/2019,Scholar Stipend,Award Costs,Scholar,PIN038445,1084,
DFID,CSC,28/03/2019,Scholar Stipend,Award Costs,Scholar,PIN038446,3252,
DFID,CSC,28/03/2019,Scholar Stipend,Award Costs,Scholar,PIN038447,1084,
DFID,CSC,28/03/2019,Scholar Stipend,Award Costs,Scholar,PIN038448,1084,
DFID,CSC,28/03/2019,Scholar Stipend,Award Costs,Scholar,PIN038449,1084,
DFID,CSC,28/03/2019,Scholar Stipend,Award Costs,Scholar,PIN038450,1084,
DFID,CSC,28/03/2019,Scholar Stipend,Award Costs,Scholar,PIN038452,1084,
DFID,CSC,28/03/2019,Scholar Stipend,Award Costs,Scholar,PIN038453,1084,
DFID,CSC,28/03/2019,Scholar Stipend,Award Costs,Scholar,PIN038454,1084,
BEIS,CSC,28/03/2019,Scholar Stipend,Award Costs,Scholar,PIN038455,6165,
DFID,CSC,28/03/2019,Scholar Stipend,Award Costs,Scholar,PIN038457,3252,
DFID,CSC,28/03/2019,Scholar Stipend,Award Costs,Scholar,PIN038458,1084,
DFID,CSC,28/03/2019,Scholar Stipend,Award Costs,Scholar,PIN038459,1084,
DFID,CSC,28/03/2019,Scholar Stipend,Award Costs,Scholar,PIN038460,1084,
DFID,CSC,28/03/2019,Scholar Stipend,Award Costs,Scholar,PIN038461,1084,
DFID,CSC,28/03/2019,Scholar Stipend,Award Costs,Scholar,PIN038462,1084,
DFID,CSC,28/03/2019,Scholar Stipend,Award Costs,Scholar,PIN038463,1084,
DFID,CSC,28/03/2019,Scholar Stipend,Award Costs,Scholar,PIN038464,1084,
DFID,CSC,28/03/2019,Scholar Stipend,Award Costs,Scholar,PIN038465,1084,
DFID,CSC,28/03/2019,Scholar Stipend,Award Costs,Scholar,PIN038467,1084,
DFID,CSC,28/03/2019,Scholar Stipend,Award Costs,Scholar,PIN038468,1084,
DFID,CSC,28/03/2019,Scholar Stipend,Award Costs,Scholar,PIN038469,1084,
DFID,CSC,28/03/2019,Scholar Stipend,Award Costs,Scholar,PIN038470,1330,
DFID,CSC,28/03/2019,Scholar Stipend,Award Costs,Scholar,PIN038471,1084,
DFID,CSC,28/03/2019,Scholar Stipend,Award Costs,Scholar,PIN038472,1084,
DFID,CSC,28/03/2019,Scholar Stipend,Award Costs,Scholar,PIN038473,1084,
DFID,CSC,28/03/2019,Scholar Stipend,Award Costs,Scholar,PIN038474,1084,
DFID,CSC,28/03/2019,Scholar Stipend,Award Costs,Scholar,PIN038475,542,
DFID,CSC,28/03/2019,Scholar Stipend,Award Costs,Scholar,PIN038476,1084,
DFID,CSC,28/03/2019,Scholar Stipend,Award Costs,Scholar,PIN038477,1084,
DFID,CSC,28/03/2019,Scholar Stipend,Award Costs,Scholar,PIN038478,1084,
DFID,CSC,28/03/2019,Scholar Stipend,Award Costs,Scholar,PIN038479,1330,
DFID,CSC,28/03/2019,Scholar Stipend,Award Costs,Scholar,PIN038480,1084,
BEIS,CSC,28/03/2019,Scholar Stipend,Award Costs,Scholar,PIN038482,4968,
DFID,CSC,28/03/2019,Scholar Stipend,Award Costs,Scholar,PIN038483,1084,
DFID,CSC,28/03/2019,Scholar Stipend,Award Costs,Scholar,PIN038484,1330,
DFID,CSC,28/03/2019,Scholar Stipend,Award Costs,Scholar,PIN038485,1084,
DFID,CSC,28/03/2019,Scholar Stipend,Award Costs,Scholar,PIN038486,3252,
DFID,CSC,28/03/2019,Scholar Stipend,Award Costs,Scholar,PIN038487,1084,
DFID,CSC,28/03/2019,Scholar Stipend,Award Costs,Scholar,PIN038488,1084,
DFID,CSC,28/03/2019,Scholar Stipend,Award Costs,Scholar,PIN038489,799.09,
DFID,CSC,28/03/2019,Scholar Stipend,Award Costs,Scholar,PIN038490,1084,
DFID,CSC,28/03/2019,Scholar Stipend,Award Costs,Scholar,PIN038491,1330,
BEIS,CSC,28/03/2019,Scholar Stipend,Award Costs,Scholar,PIN038492,4968,
DFID,CSC,28/03/2019,Scholar Stipend,Award Costs,Scholar,PIN038493,1084,
DFID,CSC,28/03/2019,Scholar Stipend,Award Costs,Scholar,PIN038494,1084,
DFID,CSC,28/03/2019,Scholar Stipend,Award Costs,Scholar,PIN038495,1330,
DFID,CSC,28/03/2019,Scholar Stipend,Award Costs,Scholar,PIN038496,1084,
DFID,CSC,28/03/2019,Scholar Stipend,Award Costs,Scholar,PIN038497,1330,
DFID,CSC,28/03/2019,Scholar Stipend,Award Costs,Scholar,PIN038499,1084,
DFID,CSC,28/03/2019,Scholar Stipend,Award Costs,Scholar,PIN038500,1330,
DFID,CSC,28/03/2019,Scholar Stipend,Award Costs,Scholar,PIN038501,1084,
DFID,CSC,28/03/2019,Scholar Stipend,Award Costs,Scholar,PIN038502,1084,
DFID,CSC,28/03/2019,Scholar Stipend,Award Costs,Scholar,PIN038503,1330,
DFID,CSC,28/03/2019,Scholar Stipend,Award Costs,Scholar,PIN038505,1330,
DFID,CSC,28/03/2019,Scholar Stipend,Award Costs,Scholar,PIN038506,1084,
DFID,CSC,28/03/2019,Scholar Stipend,Award Costs,Scholar,PIN038507,1084,
DFID,CSC,28/03/2019,Scholar Stipend,Award Costs,Scholar,PIN038508,1084,
DFID,CSC,28/03/2019,Scholar Stipend,Award Costs,Scholar,PIN038510,1330,
DFID,CSC,28/03/2019,Scholar Stipend,Award Costs,Scholar,PIN038511,1084,
DFID,CSC,28/03/2019,Scholar Stipend,Award Costs,Scholar,PIN038512,1084,
DFID,CSC,28/03/2019,Scholar Stipend,Award Costs,Scholar,PIN038513,1084,
DFID,CSC,28/03/2019,Scholar Stipend,Award Costs,Scholar,PIN038514,1084,
DFID,CSC,28/03/2019,Scholar Stipend,Award Costs,Scholar,PIN038515,1084,
DFID,CSC,28/03/2019,Scholar Stipend,Award Costs,Scholar,PIN038516,1084,
DFID,CSC,28/03/2019,Scholar Stipend,Award Costs,Scholar,PIN038517,1084,
DFID,CSC,28/03/2019,Scholar Stipend,Award Costs,Scholar,PIN038518,1084,
DFID,CSC,28/03/2019,Scholar Stipend,Award Costs,Scholar,PIN038519,542,
DFID,CSC,28/03/2019,Scholar Stipend,Award Costs,Scholar,PIN038520,1084,
DFID,CSC,28/03/2019,Scholar Stipend,Award Costs,Scholar,PIN038521,542,
DFID,CSC,28/03/2019,Scholar Stipend,Award Costs,Scholar,PIN038522,1084,
DFID,CSC,28/03/2019,Scholar Stipend,Award Costs,Scholar,PIN038523,1084,
DFID,CSC,28/03/2019,Scholar Stipend,Award Costs,Scholar,PIN038524,1084,
BEIS,CSC,28/03/2019,Scholar Stipend,Award Costs,Scholar,PIN038525,4968,
DFID,CSC,28/03/2019,Scholar Stipend,Award Costs,Scholar,PIN038526,1084,
DFID,CSC,28/03/2019,Scholar Stipend,Award Costs,Scholar,PIN038527,3252,
DFID,CSC,28/03/2019,Scholar Stipend,Award Costs,Scholar,PIN038528,1084,
DFID,CSC,28/03/2019,Scholar Stipend,Award Costs,Scholar,PIN038529,1084,
DFID,CSC,28/03/2019,Scholar Stipend,Award Costs,Scholar,PIN038530,1084,
DFID,CSC,28/03/2019,Scholar Stipend,Award Costs,Scholar,PIN038531,1084,
DFID,CSC,28/03/2019,Scholar Stipend,Award Costs,Scholar,PIN038532,1084,
DFID,CSC,28/03/2019,Scholar Stipend,Award Costs,Scholar,PIN038533,1084,
DFID,CSC,28/03/2019,Scholar Stipend,Award Costs,Scholar,PIN038534,1084,
DFID,CSC,28/03/2019,Scholar Stipend,Programme Costs,Scholar,PIN038535,1084,
DFID,CSC,28/03/2019,Scholar Stipend,Award Costs,Scholar,PIN038536,1084,
DFID,CSC,28/03/2019,Scholar Stipend,Award Costs,Scholar,PIN038537,1084,
DFID,CSC,28/03/2019,Scholar Stipend,Award Costs,Scholar,PIN038538,1330,
DFID,CSC,28/03/2019,Scholar Stipend,Award Costs,Scholar,PIN038539,1084,
DFID,CSC,28/03/2019,Scholar Stipend,Award Costs,Scholar,PIN038540,1084,
DFID,CSC,28/03/2019,Scholar Stipend,Award Costs,Scholar,PIN038541,1330,
DFID,CSC,28/03/2019,Scholar Stipend,Award Costs,Scholar,PIN038542,1330,
DFID,CSC,28/03/2019,Scholar Stipend,Award Costs,Scholar,PIN038543,1084,
DFID,CSC,28/03/2019,Scholar Stipend,Award Costs,Scholar,PIN038544,1084,
DFID,CSC,28/03/2019,Scholar Stipend,Award Costs,Scholar,PIN038545,1084,
DFID,CSC,28/03/2019,Scholar Stipend,Award Costs,Scholar,PIN038546,1084,
DFID,CSC,28/03/2019,Scholar Stipend,Award Costs,Scholar,PIN038547,1084,
DFID,CSC,28/03/2019,Scholar Stipend,Award Costs,Scholar,PIN038548,542,
DFID,CSC,28/03/2019,Scholar Stipend,Award Costs,Scholar,PIN038549,1084,
DFID,CSC,28/03/2019,Scholar Stipend,Award Costs,Scholar,PIN038550,1330,
DFID,CSC,28/03/2019,Scholar Stipend,Award Costs,Scholar,PIN038551,1330,
DFID,CSC,28/03/2019,Scholar Stipend,Award Costs,Scholar,PIN038552,1084,
DFID,CSC,28/03/2019,Scholar Stipend,Award Costs,Scholar,PIN038553,1330,
BEIS,CSC,28/03/2019,Scholar Stipend,Award Costs,Scholar,PIN038554,4968,
DFID,CSC,28/03/2019,Scholar Stipend,Award Costs,Scholar,PIN038555,1084,
DFID,CSC,28/03/2019,Scholar Stipend,Award Costs,Scholar,PIN038556,1084,
DFID,CSC,28/03/2019,Scholar Stipend,Award Costs,Scholar,PIN038557,1084,
DFID,CSC,28/03/2019,Scholar Stipend,Award Costs,Scholar,PIN038558,677.13,
DFID,CSC,28/03/2019,Scholar Stipend,Award Costs,Scholar,PIN038559,1084,
DFID,CSC,28/03/2019,Scholar Stipend,Award Costs,Scholar,PIN038560,542,
DFID,CSC,28/03/2019,Scholar Stipend,Award Costs,Scholar,PIN038561,1084,
DFID,CSC,28/03/2019,Scholar Stipend,Award Costs,Scholar,PIN038562,1084,
DFID,CSC,28/03/2019,Scholar Stipend,Award Costs,Scholar,PIN038563,1084,
DFID,CSC,28/03/2019,Scholar Stipend,Award Costs,Scholar,PIN038565,1084,
DFID,CSC,28/03/2019,Scholar Stipend,Award Costs,Scholar,PIN038566,542,
DFID,CSC,28/03/2019,Scholar Stipend,Award Costs,Scholar,PIN038567,1084,
DFID,CSC,28/03/2019,Scholar Stipend,Award Costs,Scholar,PIN038568,1084,
DFID,CSC,28/03/2019,Scholar Stipend,Award Costs,Scholar,PIN038569,1084,
DFID,CSC,28/03/2019,Scholar Stipend,Award Costs,Scholar,PIN038570,1084,
DFID,CSC,28/03/2019,Scholar Stipend,Award Costs,Scholar,PIN038571,1084,
DFID,CSC,28/03/2019,Scholar Stipend,Award Costs,Scholar,PIN038572,1084,
DFID,CSC,28/03/2019,Scholar Stipend,Award Costs,Scholar,PIN038573,1084,
DFID,CSC,28/03/2019,Scholar Stipend,Award Costs,Scholar,PIN038574,1084,
DFID,CSC,28/03/2019,Scholar Stipend,Award Costs,Scholar,PIN038575,1084,
DFID,CSC,28/03/2019,Scholar Stipend,Award Costs,Scholar,PIN038576,1084,
BEIS,CSC,28/03/2019,Scholar Stipend,Award Costs,Scholar,PIN038577,4968,
DFID,CSC,28/03/2019,Scholar Stipend,Award Costs,Scholar,PIN038578,3252,
DFID,CSC,28/03/2019,Scholar Stipend,Award Costs,Scholar,PIN038579,1084,
DFID,CSC,28/03/2019,Scholar Stipend,Award Costs,Scholar,PIN038580,1084,
DFID,CSC,28/03/2019,Scholar Stipend,Award Costs,Scholar,PIN038581,1084,
DFID,CSC,28/03/2019,Scholar Stipend,Award Costs,Scholar,PIN038582,1084,
DFID,CSC,28/03/2019,Scholar Stipend,Award Costs,Scholar,PIN038583,1330,
DFID,CSC,28/03/2019,Scholar Stipend,Award Costs,Scholar,PIN038584,1084,
DFID,CSC,28/03/2019,Scholar Stipend,Award Costs,Scholar,PIN038585,1084,
DFID,CSC,28/03/2019,Scholar Stipend,Award Costs,Scholar,PIN038586,1084,
DFID,CSC,28/03/2019,Scholar Stipend,Award Costs,Scholar,PIN038587,1084,
DFID,CSC,28/03/2019,Scholar Stipend,Award Costs,Scholar,PIN038588,1084,
DFID,CSC,28/03/2019,Scholar Stipend,Award Costs,Scholar,PIN038589,1084,
DFID,CSC,28/03/2019,Scholar Stipend,Award Costs,Scholar,PIN038590,1084,
DFID,CSC,28/03/2019,Scholar Stipend,Award Costs,Scholar,PIN038591,1330,
DFID,CSC,28/03/2019,Scholar Stipend,Award Costs,Scholar,PIN038592,1330,
DFID,CSC,28/03/2019,Scholar Stipend,Award Costs,Scholar,PIN038593,1084,
DFID,CSC,28/03/2019,Scholar Stipend,Award Costs,Scholar,PIN038594,1084,
BEIS,CSC,28/03/2019,Scholar Stipend,Award Costs,Scholar,PIN038595,6165,
DFID,CSC,28/03/2019,Scholar Stipend,Award Costs,Scholar,PIN038596,1330,
DFID,CSC,28/03/2019,Scholar Stipend,Award Costs,Scholar,PIN038597,1084,
DFID,CSC,28/03/2019,Scholar Stipend,Award Costs,Scholar,PIN038598,1330,
DFID,CSC,28/03/2019,Scholar Stipend,Award Costs,Scholar,PIN038599,1084,
DFID,CSC,28/03/2019,Scholar Stipend,Award Costs,Scholar,PIN038600,1330,
DFID,CSC,28/03/2019,Scholar Stipend,Award Costs,Scholar,PIN038601,1084,
DFID,CSC,28/03/2019,Scholar Stipend,Award Costs,Scholar,PIN038602,1084,
DFID,CSC,28/03/2019,Scholar Stipend,Award Costs,Scholar,PIN038603,1330,
DFID,CSC,28/03/2019,Scholar Stipend,Award Costs,Scholar,PIN038604,1084,
DFID,CSC,28/03/2019,Scholar Stipend,Award Costs,Scholar,PIN038605,1330,
DFID,CSC,28/03/2019,Scholar Stipend,Award Costs,Scholar,PIN038606,1084,
DFID,CSC,28/03/2019,Scholar Stipend,Award Costs,Scholar,PIN038607,1084,
DFID,CSC,28/03/2019,Scholar Stipend,Award Costs,Scholar,PIN038608,1330,
DFID,CSC,28/03/2019,Scholar Stipend,Award Costs,Scholar,PIN038609,1330,
DFID,CSC,28/03/2019,Scholar Stipend,Award Costs,Scholar,PIN038610,1330,
DFID,CSC,28/03/2019,Scholar Stipend,Award Costs,Scholar,PIN038611,1330,
DFID,CSC,28/03/2019,Scholar Stipend,Award Costs,Scholar,PIN038612,1084,
DFID,CSC,28/03/2019,Scholar Stipend,Award Costs,Scholar,PIN038613,1084,
DFID,CSC,28/03/2019,Scholar Stipend,Award Costs,Scholar,PIN038614,1084,
DFID,CSC,28/03/2019,Scholar Stipend,Award Costs,Scholar,PIN038615,1084,
DFID,CSC,28/03/2019,Scholar Stipend,Award Costs,Scholar,PIN038616,1330,
DFID,CSC,28/03/2019,Scholar Stipend,Award Costs,Scholar,PIN038617,1084,
DFID,CSC,28/03/2019,Scholar Stipend,Award Costs,Scholar,PIN038618,1084,
BEIS,CSC,28/03/2019,Scholar Stipend,Award Costs,Scholar,PIN038619,6165,
DFID,CSC,28/03/2019,Scholar Stipend,Award Costs,Scholar,PIN038620,1084,
DFID,CSC,28/03/2019,Scholar Stipend,Award Costs,Scholar,PIN038621,542,
DFID,CSC,28/03/2019,Scholar Stipend,Award Costs,Scholar,PIN038622,1084,
DFID,CSC,28/03/2019,Scholar Stipend,Award Costs,Scholar,PIN038623,1084,
DFID,CSC,28/03/2019,Scholar Stipend,Award Costs,Scholar,PIN038624,1084,
DFID,CSC,28/03/2019,Scholar Stipend,Award Costs,Scholar,PIN038625,1330,
DFID,CSC,28/03/2019,Scholar Stipend,Award Costs,Scholar,PIN038626,1084,
DFID,CSC,28/03/2019,Scholar Stipend,Award Costs,Scholar,PIN038627,1084,
DFID,CSC,28/03/2019,Scholar Stipend,Award Costs,Scholar,PIN038629,1330,
DFID,CSC,28/03/2019,Scholar Stipend,Award Costs,Scholar,PIN038630,1084,
DFID,CSC,28/03/2019,Scholar Stipend,Award Costs,Scholar,PIN038631,1084,
DFID,CSC,28/03/2019,Scholar Stipend,Award Costs,Scholar,PIN038632,3252,
DFID,CSC,28/03/2019,Scholar Stipend,Award Costs,Scholar,PIN038633,1084,
DFID,CSC,28/03/2019,Scholar Stipend,Award Costs,Scholar,PIN038634,1084,
DFID,CSC,28/03/2019,Scholar Stipend,Award Costs,Scholar,PIN038635,1084,
DFID,CSC,28/03/2019,Scholar Stipend,Award Costs,Scholar,PIN038636,1330,
DFID,CSC,28/03/2019,Scholar Stipend,Award Costs,Scholar,PIN038637,1084,
DFID,CSC,28/03/2019,Scholar Stipend,Programme Costs,Scholar,PIN038638,1330,
DFID,CSC,28/03/2019,Scholar Stipend,Award Costs,Scholar,PIN038639,1084,
DFID,CSC,28/03/2019,Scholar Stipend,Award Costs,Scholar,PIN038640,1084,
DFID,CSC,28/03/2019,Scholar Stipend,Award Costs,Scholar,PIN038641,1084,
DFID,CSC,28/03/2019,Scholar Stipend,Award Costs,Scholar,PIN038642,3252,
DFID,CSC,28/03/2019,Scholar Stipend,Award Costs,Scholar,PIN038643,1330,
DFID,CSC,28/03/2019,Scholar Stipend,Award Costs,Scholar,PIN038644,1084,
DFID,CSC,28/03/2019,Scholar Stipend,Award Costs,Scholar,PIN038645,3252,
DFID,CSC,28/03/2019,Scholar Stipend,Award Costs,Scholar,PIN038646,1084,
DFID,CSC,28/03/2019,Scholar Stipend,Award Costs,Scholar,PIN038647,1330,
DFID,CSC,28/03/2019,Scholar Stipend,Award Costs,Scholar,PIN038649,542,
DFID,CSC,28/03/2019,Scholar Stipend,Award Costs,Scholar,PIN038650,1084,
DFID,CSC,28/03/2019,Scholar Stipend,Award Costs,Scholar,PIN038651,1084,
BEIS,CSC,28/03/2019,Scholar Stipend,Award Costs,Scholar,PIN038652,6165,
DFID,CSC,28/03/2019,Scholar Stipend,Award Costs,Scholar,PIN038653,1084,
DFID,CSC,28/03/2019,Scholar Stipend,Award Costs,Scholar,PIN038654,1330,
DFID,CSC,28/03/2019,Scholar Stipend,Award Costs,Scholar,PIN038656,1330,
DFID,CSC,28/03/2019,Scholar Stipend,Award Costs,Scholar,PIN038657,1084,
DFID,CSC,28/03/2019,Scholar Stipend,Award Costs,Scholar,PIN038658,1084,
DFID,CSC,28/03/2019,Scholar Stipend,Award Costs,Scholar,PIN038659,1084,
DFID,CSC,28/03/2019,Scholar Stipend,Award Costs,Scholar,PIN038660,1084,
DFID,CSC,28/03/2019,Scholar Stipend,Award Costs,Scholar,PIN038661,1084,
DFID,CSC,28/03/2019,Scholar Stipend,Award Costs,Scholar,PIN038662,1084,
DFID,CSC,28/03/2019,Scholar Stipend,Award Costs,Scholar,PIN038663,1084,
DFID,CSC,28/03/2019,Scholar Stipend,Award Costs,Scholar,PIN038664,1084,
DFID,CSC,28/03/2019,Scholar Stipend,Award Costs,Scholar,PIN038665,3252,
DFID,CSC,28/03/2019,Scholar Stipend,Programme Costs,Scholar,PIN038666,1330,
DFID,CSC,28/03/2019,Scholar Stipend,Award Costs,Scholar,PIN038667,1084,
DFID,CSC,28/03/2019,Scholar Stipend,Award Costs,Scholar,PIN038668,1330,
DFID,CSC,28/03/2019,Scholar Stipend,Award Costs,Scholar,PIN038669,1084,
DFID,CSC,28/03/2019,Scholar Stipend,Award Costs,Scholar,PIN038670,1084,
DFID,CSC,28/03/2019,Scholar Stipend,Award Costs,Scholar,PIN038671,1084,
DFID,CSC,28/03/2019,Scholar Stipend,Award Costs,Scholar,PIN038672,1084,
DFID,CSC,28/03/2019,Scholar Stipend,Award Costs,Scholar,PIN038673,1084,
DFID,CSC,28/03/2019,Scholar Stipend,Award Costs,Scholar,PIN038675,1084,
DFID,CSC,28/03/2019,Scholar Stipend,Award Costs,Scholar,PIN038676,1330,
DFID,CSC,28/03/2019,Scholar Stipend,Award Costs,Scholar,PIN038677,1084,
DFID,CSC,28/03/2019,Scholar Stipend,Award Costs,Scholar,PIN038678,1330,
DFID,CSC,28/03/2019,Scholar Stipend,Award Costs,Scholar,PIN038679,542,
DFID,CSC,28/03/2019,Scholar Stipend,Award Costs,Scholar,PIN038680,1330,
DFID,CSC,28/03/2019,Scholar Stipend,Award Costs,Scholar,PIN038681,1084,
DFID,CSC,28/03/2019,Scholar Stipend,Award Costs,Scholar,PIN038682,1084,
BEIS,CSC,28/03/2019,Scholar Stipend,Award Costs,Scholar,PIN038683,4968,
DFID,CSC,28/03/2019,Scholar Stipend,Award Costs,Scholar,PIN038684,1084,
DFID,CSC,28/03/2019,Scholar Stipend,Award Costs,Scholar,PIN038685,1084,
DFID,CSC,28/03/2019,Scholar Stipend,Award Costs,Scholar,PIN038686,1084,
DFID,CSC,28/03/2019,Scholar Stipend,Award Costs,Scholar,PIN038688,1330,
DFID,CSC,28/03/2019,Scholar Stipend,Award Costs,Scholar,PIN038689,1084,
DFID,CSC,28/03/2019,Scholar Stipend,Award Costs,Scholar,PIN038690,1330,
DFID,CSC,28/03/2019,Scholar Stipend,Award Costs,Scholar,PIN038691,1084,
DFID,CSC,28/03/2019,Scholar Stipend,Award Costs,Scholar,PIN038693,1084,
DFID,CSC,28/03/2019,Scholar Stipend,Award Costs,Scholar,PIN038694,1084,
DFID,CSC,28/03/2019,Scholar Stipend,Award Costs,Scholar,PIN038695,1084,
DFID,CSC,28/03/2019,Scholar Stipend,Award Costs,Scholar,PIN038696,1084,
DFID,CSC,28/03/2019,Scholar Stipend,Award Costs,Scholar,PIN038697,1084,
DFID,CSC,28/03/2019,Scholar Stipend,Award Costs,Scholar,PIN038698,1084,
DFID,CSC,28/03/2019,Scholar Stipend,Award Costs,Scholar,PIN038699,1330,
DFID,CSC,28/03/2019,Scholar Stipend,Award Costs,Scholar,PIN038700,1084,
DFID,CSC,28/03/2019,Scholar Stipend,Award Costs,Scholar,PIN038701,1084,
DFID,CSC,28/03/2019,Scholar Stipend,Award Costs,Scholar,PIN038702,1084,
DFID,CSC,28/03/2019,Scholar Stipend,Award Costs,Scholar,PIN038703,1084,
DFID,CSC,28/03/2019,Scholar Stipend,Award Costs,Scholar,PIN038704,1033.51,
DFID,CSC,28/03/2019,Scholar Stipend,Award Costs,Scholar,PIN038705,1084,
DFID,CSC,28/03/2019,Scholar Stipend,Award Costs,Scholar,PIN038706,1084,
DFID,CSC,28/03/2019,Scholar Stipend,Award Costs,Scholar,PIN038707,1084,
DFID,CSC,28/03/2019,Scholar Stipend,Award Costs,Scholar,PIN038708,1330,
DFID,CSC,28/03/2019,Scholar Stipend,Award Costs,Scholar,PIN038709,1084,
DFID,CSC,28/03/2019,Scholar Stipend,Award Costs,Scholar,PIN038710,1084,
BEIS,CSC,28/03/2019,Scholar Stipend,Award Costs,Scholar,PIN038711,4968,
DFID,CSC,28/03/2019,Scholar Stipend,Award Costs,Scholar,PIN038712,1084,
DFID,CSC,28/03/2019,Scholar Stipend,Programme Costs,Scholar,PIN038713,1084,
DFID,CSC,28/03/2019,Scholar Stipend,Programme Costs,Scholar,PIN038714,1330,
DFID,CSC,28/03/2019,Scholar Stipend,Award Costs,Scholar,PIN038715,1084,
BEIS,CSC,28/03/2019,Scholar Stipend,Award Costs,Scholar,PIN038717,4968,
DFID,CSC,28/03/2019,Scholar Stipend,Award Costs,Scholar,PIN038718,1084,
DFID,CSC,28/03/2019,Scholar Stipend,Award Costs,Scholar,PIN038719,1084,
DFID,CSC,28/03/2019,Scholar Stipend,Award Costs,Scholar,PIN038720,1084,
DFID,CSC,28/03/2019,Scholar Stipend,Award Costs,Scholar,PIN038721,1084,
BEIS,CSC,28/03/2019,Scholar Stipend,Award Costs,Scholar,PIN038722,4968,
DFID,CSC,28/03/2019,Scholar Stipend,Award Costs,Scholar,PIN038723,1084,
DFID,CSC,28/03/2019,Scholar Stipend,Award Costs,Scholar,PIN038724,1084,
BEIS,CSC,28/03/2019,Scholar Stipend,Award Costs,Scholar,PIN038726,4968,
DFID,CSC,28/03/2019,Scholar Stipend,Award Costs,Scholar,PIN038727,1084,
DFID,CSC,28/03/2019,Scholar Stipend,Award Costs,Scholar,PIN038728,1084,
DFID,CSC,28/03/2019,Scholar Stipend,Award Costs,Scholar,PIN038729,1084,
DFID,CSC,28/03/2019,Scholar Stipend,Award Costs,Scholar,PIN038730,1084,
DFID,CSC,28/03/2019,Scholar Stipend,Award Costs,Scholar,PIN038731,1084,
DFID,CSC,28/03/2019,Scholar Stipend,Award Costs,Scholar,PIN038732,1084,
DFID,CSC,28/03/2019,Scholar Stipend,Award Costs,Scholar,PIN038733,1084,
DFID,CSC,28/03/2019,Scholar Stipend,Award Costs,Scholar,PIN038734,1084,
DFID,CSC,28/03/2019,Scholar Stipend,Award Costs,Scholar,PIN038735,1084,
DFID,CSC,28/03/2019,Scholar Stipend,Award Costs,Scholar,PIN038736,1084,
DFID,CSC,28/03/2019,Scholar Stipend,Award Costs,Scholar,PIN038738,1084,
DFID,CSC,28/03/2019,Scholar Stipend,Award Costs,Scholar,PIN038739,1084,
DFID,CSC,28/03/2019,Scholar Stipend,Award Costs,Scholar,PIN038740,1084,
DFID,CSC,28/03/2019,Scholar Stipend,Award Costs,Scholar,PIN038741,1084,
DFID,CSC,28/03/2019,Scholar Stipend,Award Costs,Scholar,PIN038742,1330,
DFID,CSC,28/03/2019,Scholar Stipend,Award Costs,Scholar,PIN038743,1084,
DFID,CSC,28/03/2019,Scholar Stipend,Award Costs,Scholar,PIN038744,1084,
DFID,CSC,28/03/2019,Scholar Stipend,Award Costs,Scholar,PIN038745,1084,
DFID,CSC,28/03/2019,Scholar Stipend,Award Costs,Scholar,PIN038746,1084,
DFID,CSC,28/03/2019,Scholar Stipend,Award Costs,Scholar,PIN038747,1084,
DFID,CSC,28/03/2019,Scholar Stipend,Award Costs,Scholar,PIN038748,1084,
DFID,CSC,28/03/2019,Scholar Stipend,Award Costs,Scholar,PIN038749,1084,
DFID,CSC,28/03/2019,Scholar Stipend,Award Costs,Scholar,PIN038750,1084,
DFID,CSC,28/03/2019,Scholar Stipend,Award Costs,Scholar,PIN038751,1084,
DFID,CSC,28/03/2019,Scholar Stipend,Award Costs,Scholar,PIN038752,1084,
BEIS,CSC,28/03/2019,Scholar Stipend,Award Costs,Scholar,PIN038753,4968,
DFID,CSC,28/03/2019,Scholar Stipend,Award Costs,Scholar,PIN038754,1330,
DFID,CSC,28/03/2019,Scholar Stipend,Award Costs,Scholar,PIN038755,542,
DFID,CSC,28/03/2019,Scholar Stipend,Award Costs,Scholar,PIN038756,1084,
DFID,CSC,28/03/2019,Scholar Stipend,Award Costs,Scholar,PIN038757,1084,
DFID,CSC,28/03/2019,Scholar Stipend,Award Costs,Scholar,PIN038758,1084,
DFID,CSC,28/03/2019,Scholar Stipend,Award Costs,Scholar,PIN038759,1330,
DFID,CSC,28/03/2019,Scholar Stipend,Award Costs,Scholar,PIN038760,1330,
DFID,CSC,28/03/2019,Scholar Stipend,Award Costs,Scholar,PIN038761,1084,
DFID,CSC,28/03/2019,Scholar Stipend,Award Costs,Scholar,PIN038762,1084,
DFID,CSC,28/03/2019,Scholar Stipend,Award Costs,Scholar,PIN038763,1084,
DFID,CSC,28/03/2019,Scholar Stipend,Award Costs,Scholar,PIN038764,1084,
DFID,CSC,28/03/2019,Scholar Stipend,Award Costs,Scholar,PIN038765,1084,
DFID,CSC,28/03/2019,Scholar Stipend,Award Costs,Scholar,PIN038766,1330,
DFID,CSC,28/03/2019,Scholar Stipend,Award Costs,Scholar,PIN038767,1084,
BEIS,CSC,28/03/2019,Scholar Stipend,Award Costs,Scholar,PIN038768,4968,
DFID,CSC,28/03/2019,Scholar Stipend,Award Costs,Scholar,PIN038769,1330,
DFID,CSC,28/03/2019,Scholar Stipend,Award Costs,Scholar,PIN038770,1084,
DFID,CSC,28/03/2019,Scholar Stipend,Award Costs,Scholar,PIN038771,1330,
DFID,CSC,28/03/2019,Scholar Stipend,Award Costs,Scholar,PIN038772,1084,
DFID,CSC,28/03/2019,Scholar Stipend,Award Costs,Scholar,PIN038773,1084,
DFID,CSC,28/03/2019,Scholar Stipend,Award Costs,Scholar,PIN038774,1330,
BEIS,CSC,28/03/2019,Scholar Stipend,Award Costs,Scholar,PIN038775,4968,
DFID,CSC,28/03/2019,Scholar Stipend,Award Costs,Scholar,PIN038776,1330,
DFID,CSC,28/03/2019,Scholar Stipend,Award Costs,Scholar,PIN038777,1084,
DFID,CSC,28/03/2019,Scholar Stipend,Award Costs,Scholar,PIN038778,1084,
BEIS,CSC,28/03/2019,Scholar Stipend,Award Costs,Scholar,PIN038779,4968,
DFID,CSC,28/03/2019,Scholar Stipend,Award Costs,Scholar,PIN038780,1084,
DFID,CSC,28/03/2019,Scholar Stipend,Award Costs,Scholar,PIN038781,1084,
DFID,CSC,28/03/2019,Scholar Stipend,Award Costs,Scholar,PIN038782,1084,
BEIS,CSC,28/03/2019,Scholar Stipend,Award Costs,Scholar,PIN038783,4968,
DFID,CSC,28/03/2019,Scholar Stipend,Award Costs,Scholar,PIN038784,1084,
DFID,CSC,28/03/2019,Scholar Stipend,Award Costs,Scholar,PIN038785,1084,
DFID,CSC,28/03/2019,Scholar Stipend,Award Costs,Scholar,PIN038786,1084,
DFID,CSC,28/03/2019,Scholar Stipend,Award Costs,Scholar,PIN038787,1330,
DFID,CSC,28/03/2019,Scholar Stipend,Award Costs,Scholar,PIN038788,1084,
DFID,CSC,28/03/2019,Scholar Stipend,Award Costs,Scholar,PIN038789,1084,
DFID,CSC,28/03/2019,Scholar Stipend,Award Costs,Scholar,PIN038790,1330,
DFID,CSC,28/03/2019,Scholar Stipend,Award Costs,Scholar,PIN038791,1084,
DFID,CSC,28/03/2019,Scholar Stipend,Award Costs,Scholar,PIN038792,1084,
DFID,CSC,28/03/2019,Scholar Stipend,Award Costs,Scholar,PIN038793,1330,
DFID,CSC,28/03/2019,Scholar Stipend,Award Costs,Scholar,PIN038794,1084,
DFID,CSC,28/03/2019,Scholar Stipend,Award Costs,Scholar,PIN038795,1084,
DFID,CSC,28/03/2019,Scholar Stipend,Award Costs,Scholar,PIN038797,1084,
DFID,CSC,28/03/2019,Scholar Stipend,Award Costs,Scholar,PIN038798,1330,
DFID,CSC,28/03/2019,Scholar Stipend,Award Costs,Scholar,PIN038799,1330,
DFID,CSC,28/03/2019,Scholar Stipend,Award Costs,Scholar,PIN038800,1084,
DFID,CSC,28/03/2019,Scholar Stipend,Award Costs,Scholar,PIN038801,1084,
DFID,CSC,28/03/2019,Scholar Stipend,Award Costs,Scholar,PIN038802,1084,
DFID,CSC,28/03/2019,Scholar Stipend,Award Costs,Scholar,PIN038803,1330,
DFID,CSC,28/03/2019,Scholar Stipend,Award Costs,Scholar,PIN038804,1330,
DFID,CSC,28/03/2019,Scholar Stipend,Award Costs,Scholar,PIN038805,1084,
DFID,CSC,28/03/2019,Scholar Stipend,Award Costs,Scholar,PIN038806,1084,
DFID,CSC,28/03/2019,Scholar Stipend,Award Costs,Scholar,PIN038807,1084,
DFID,CSC,28/03/2019,Scholar Stipend,Award Costs,Scholar,PIN038808,1084,
DFID,CSC,28/03/2019,Scholar Stipend,Award Costs,Scholar,PIN038809,1330,
DFID,CSC,28/03/2019,Scholar Stipend,Award Costs,Scholar,PIN038810,1330,
DFID,CSC,28/03/2019,Scholar Stipend,Award Costs,Scholar,PIN038811,1330,
DFID,CSC,28/03/2019,Scholar Stipend,Award Costs,Scholar,PIN038812,1330,
DFID,CSC,28/03/2019,Scholar Stipend,Award Costs,Scholar,PIN038813,1084,
DFID,CSC,28/03/2019,Scholar Stipend,Award Costs,Scholar,PIN038814,1084,
BEIS,CSC,28/03/2019,Scholar Stipend,Award Costs,Scholar,PIN038816,4968,
DFID,CSC,28/03/2019,Scholar Stipend,Award Costs,Scholar,PIN038817,1618.2,
DFID,CSC,28/03/2019,Scholar Stipend,Award Costs,Scholar,PIN038818,1084,
DFID,CSC,28/03/2019,Scholar Stipend,Award Costs,Scholar,PIN038819,542,
DFID,CSC,28/03/2019,Scholar Stipend,Award Costs,Scholar,PIN038820,1084,
DFID,CSC,28/03/2019,Scholar Stipend,Award Costs,Scholar,PIN038821,1330,
DFID,CSC,28/03/2019,Scholar Stipend,Award Costs,Scholar,PIN038822,1084,
DFID,CSC,28/03/2019,Scholar Stipend,Award Costs,Scholar,PIN038823,1084,
DFID,CSC,28/03/2019,Scholar Stipend,Award Costs,Scholar,PIN038824,1084,
DFID,CSC,28/03/2019,Scholar Stipend,Award Costs,Scholar,PIN038825,1084,
DFID,CSC,28/03/2019,Scholar Stipend,Award Costs,Scholar,PIN038826,1084,
DFID,CSC,28/03/2019,Scholar Stipend,Award Costs,Scholar,PIN038827,1330,
BEIS,CSC,28/03/2019,Scholar Stipend,Award Costs,Scholar,PIN038828,4968,
DFID,CSC,28/03/2019,Scholar Stipend,Award Costs,Scholar,PIN038829,3252,
DFID,CSC,28/03/2019,Scholar Stipend,Award Costs,Scholar,PIN038830,1084,
DFID,CSC,28/03/2019,Scholar Stipend,Award Costs,Scholar,PIN038831,1084,
DFID,CSC,28/03/2019,Scholar Stipend,Award Costs,Scholar,PIN038832,1084,
DFID,CSC,28/03/2019,Scholar Stipend,Award Costs,Scholar,PIN038833,1330,
BEIS,CSC,28/03/2019,Scholar Stipend,Award Costs,Scholar,PIN038834,4968,
DFID,CSC,28/03/2019,Scholar Stipend,Award Costs,Scholar,PIN038835,1084,
DFID,CSC,28/03/2019,Scholar Stipend,Award Costs,Scholar,PIN038836,1330,
DFID,CSC,28/03/2019,Scholar Stipend,Award Costs,Scholar,PIN038837,1084,
DFID,CSC,28/03/2019,Scholar Stipend,Award Costs,Scholar,PIN038838,1084,
DFID,CSC,28/03/2019,Scholar Stipend,Award Costs,Scholar,PIN038839,542,
DFID,CSC,28/03/2019,Scholar Stipend,Award Costs,Scholar,PIN038840,1084,
DFID,CSC,28/03/2019,Scholar Stipend,Award Costs,Scholar,PIN038841,1084,
DFID,CSC,28/03/2019,Scholar Stipend,Award Costs,Scholar,PIN038842,1330,
DFID,CSC,28/03/2019,Scholar Stipend,Award Costs,Scholar,PIN038843,1084,
DFID,CSC,28/03/2019,Scholar Stipend,Award Costs,Scholar,PIN038844,1084,
DFID,CSC,28/03/2019,Scholar Stipend,Award Costs,Scholar,PIN038845,1330,
BEIS,CSC,28/03/2019,Scholar Stipend,Award Costs,Scholar,PIN038846,4968,
DFID,CSC,28/03/2019,Scholar Stipend,Award Costs,Scholar,PIN038847,1084,
DFID,CSC,28/03/2019,Scholar Stipend,Award Costs,Scholar,PIN038848,1084,
DFID,CSC,28/03/2019,Scholar Stipend,Award Costs,Scholar,PIN038849,1084,
BEIS,CSC,28/03/2019,Scholar Stipend,Award Costs,Scholar,PIN038850,4968,
DFID,CSC,28/03/2019,Scholar Stipend,Award Costs,Scholar,PIN038851,1330,
BEIS,CSC,28/03/2019,Scholar Stipend,Award Costs,Scholar,PIN038852,4968,
DFID,CSC,28/03/2019,Scholar Stipend,Award Costs,Scholar,PIN038853,1084,
DFID,CSC,28/03/2019,Scholar Stipend,Award Costs,Scholar,PIN038854,1084,
DFID,CSC,28/03/2019,Scholar Stipend,Award Costs,Scholar,PIN038855,1084,
DFID,CSC,28/03/2019,Scholar Stipend,Award Costs,Scholar,PIN038856,1084,
DFID,CSC,28/03/2019,Scholar Stipend,Award Costs,Scholar,PIN038857,1084,
DFID,CSC,28/03/2019,Scholar Stipend,Award Costs,Scholar,PIN038858,1084,
DFID,CSC,28/03/2019,Scholar Stipend,Award Costs,Scholar,PIN038859,1084,
DFID,CSC,28/03/2019,Scholar Stipend,Award Costs,Scholar,PIN038860,1084,
DFID,CSC,28/03/2019,Scholar Stipend,Award Costs,Scholar,PIN038861,1084,
BEIS,CSC,28/03/2019,Scholar Stipend,Award Costs,Scholar,PIN038862,4968,
DFID,CSC,28/03/2019,Scholar Stipend,Award Costs,Scholar,PIN038863,1084,
DFID,CSC,28/03/2019,Scholar Stipend,Award Costs,Scholar,PIN038864,1084,
DFID,CSC,28/03/2019,Scholar Stipend,Award Costs,Scholar,PIN038865,542,
DFID,CSC,28/03/2019,Scholar Stipend,Award Costs,Scholar,PIN038866,1084,
DFID,CSC,28/03/2019,Scholar Stipend,Award Costs,Scholar,PIN038867,1084,
DFID,CSC,28/03/2019,Scholar Stipend,Award Costs,Scholar,PIN038869,1084,
DFID,CSC,28/03/2019,Scholar Stipend,Award Costs,Scholar,PIN038870,1084,
BEIS,CSC,28/03/2019,Scholar Stipend,Award Costs,Scholar,PIN038871,6165,
DFID,CSC,28/03/2019,Scholar Stipend,Award Costs,Scholar,PIN038872,1330,
DFID,CSC,28/03/2019,Scholar Stipend,Award Costs,Scholar,PIN038873,1330,
DFID,CSC,28/03/2019,Scholar Stipend,Award Costs,Scholar,PIN038874,1084,
DFID,CSC,28/03/2019,Scholar Stipend,Award Costs,Scholar,PIN038875,1084,
DFID,CSC,28/03/2019,Scholar Stipend,Award Costs,Scholar,PIN038876,1330,
DFID,CSC,28/03/2019,Scholar Stipend,Award Costs,Scholar,PIN038877,1084,
DFID,CSC,28/03/2019,Scholar Stipend,Award Costs,Scholar,PIN038878,1084,
DFID,CSC,28/03/2019,Scholar Stipend,Award Costs,Scholar,PIN038879,1084,
DFID,CSC,28/03/2019,Scholar Stipend,Award Costs,Scholar,PIN038880,1330,
BEIS,CSC,28/03/2019,Scholar Stipend,Award Costs,Scholar,PIN038881,4968,
DFID,CSC,28/03/2019,Scholar Stipend,Programme Costs,Scholar,PIN038882,1330,
DFID,CSC,28/03/2019,Scholar Stipend,Programme Costs,Scholar,PIN038883,1084,
DFID,CSC,28/03/2019,Scholar Stipend,Award Costs,Scholar,PIN038884,1084,
DFID,CSC,28/03/2019,Scholar Stipend,Award Costs,Scholar,PIN038885,1084,
DFID,CSC,28/03/2019,Scholar Stipend,Award Costs,Scholar,PIN038886,1330,
DFID,CSC,28/03/2019,Scholar Stipend,Award Costs,Scholar,PIN038887,612.16,
DFID,CSC,28/03/2019,Scholar Stipend,Award Costs,Scholar,PIN038888,1084,
DFID,CSC,28/03/2019,Scholar Stipend,Award Costs,Scholar,PIN038889,1330,
DFID,CSC,28/03/2019,Scholar Stipend,Award Costs,Scholar,PIN038890,542,
DFID,CSC,28/03/2019,Scholar Stipend,Award Costs,Scholar,PIN038891,1084,
DFID,CSC,28/03/2019,Scholar Stipend,Award Costs,Scholar,PIN038892,1084,
DFID,CSC,28/03/2019,Scholar Stipend,Award Costs,Scholar,PIN038893,1084,
DFID,CSC,28/03/2019,Scholar Stipend,Award Costs,Scholar,PIN038894,1330,
DFID,CSC,28/03/2019,Scholar Stipend,Award Costs,Scholar,PIN038895,1084,
DFID,CSC,28/03/2019,Scholar Stipend,Award Costs,Scholar,PIN038896,1084,
DFID,CSC,28/03/2019,Scholar Stipend,Award Costs,Scholar,PIN038897,1084,
DFID,CSC,28/03/2019,Scholar Stipend,Award Costs,Scholar,PIN038898,1084,
DFID,CSC,28/03/2019,Scholar Stipend,Award Costs,Scholar,PIN038899,1084,
DFID,CSC,28/03/2019,Scholar Stipend,Award Costs,Scholar,PIN038900,1084,
DFID,CSC,28/03/2019,Scholar Stipend,Award Costs,Scholar,PIN038901,1330,
DFID,CSC,28/03/2019,Scholar Stipend,Award Costs,Scholar,PIN038902,1084,
DFID,CSC,28/03/2019,Scholar Stipend,Award Costs,Scholar,PIN038903,1084,
DFID,CSC,28/03/2019,Scholar Stipend,Award Costs,Scholar,PIN038904,1084,
DFID,CSC,28/03/2019,Scholar Stipend,Award Costs,Scholar,PIN038905,1084,
DFID,CSC,28/03/2019,Scholar Stipend,Award Costs,Scholar,PIN038906,1084,
DFID,CSC,28/03/2019,Scholar Stipend,Award Costs,Scholar,PIN038907,1330,
DFID,CSC,28/03/2019,Scholar Stipend,Award Costs,Scholar,PIN038908,3252,
DFID,CSC,28/03/2019,Scholar Stipend,Award Costs,Scholar,PIN038909,1084,
DFID,CSC,28/03/2019,Scholar Stipend,Award Costs,Scholar,PIN038910,1084,
DFID,CSC,28/03/2019,Scholar Stipend,Award Costs,Scholar,PIN038911,1330,
DFID,CSC,28/03/2019,Scholar Stipend,Award Costs,Scholar,PIN038912,1084,
DFID,CSC,28/03/2019,Scholar Stipend,Award Costs,Scholar,PIN038913,1084,
DFID,CSC,28/03/2019,Scholar Stipend,Award Costs,Scholar,PIN038914,1084,
DFID,CSC,28/03/2019,Scholar Stipend,Award Costs,Scholar,PIN038915,1084,
DFID,CSC,28/03/2019,Scholar Stipend,Award Costs,Scholar,PIN038916,1084,
DFID,CSC,28/03/2019,Scholar Stipend,Award Costs,Scholar,PIN038917,665,
DFID,CSC,28/03/2019,Scholar Stipend,Award Costs,Scholar,PIN038919,1084,
DFID,CSC,28/03/2019,Scholar Stipend,Award Costs,Scholar,PIN038920,1084,
DFID,CSC,28/03/2019,Scholar Stipend,Award Costs,Scholar,PIN038921,570.21,
DFID,CSC,28/03/2019,Scholar Stipend,Award Costs,Scholar,PIN038923,1084,
DFID,CSC,28/03/2019,Scholar Stipend,Award Costs,Scholar,PIN038924,1084,
DFID,CSC,28/03/2019,Scholar Stipend,Award Costs,Scholar,PIN038925,1084,
DFID,CSC,28/03/2019,Advances Repayments,Award Costs,Scholar,PIN038926,-676.67,
DFID,CSC,28/03/2019,Advances Repayments,Award Costs,Scholar,PIN038927,-890.35,
DFID,CSC,28/03/2019,Scholar Allowances,Award Costs,Scholar,PIN038934,1041,
DFID,CSC,28/03/2019,Scholar Allowances,Award Costs,Scholar,PIN038936,580,
DFID,CSC,28/03/2019,Scholar Allowances,Award Costs,Scholar,PIN038952,632.01,
DFID,CSC,28/03/2019,Scholar Allowances,Award Costs,Scholar,PIN038957,1031.51,
DFID,CSC,28/03/2019,Scholar Allowances,Award Costs,Scholar,PIN038974,580,
DFID,CSC,28/03/2019,Scholar Allowances,Award Costs,Scholar,PIN038982,2378.41,
DFID,CSC,28/03/2019,Scholar Allowances,Award Costs,Scholar,PIN039006,779.06,
DFID,CSC,28/03/2019,Scholar Allowances,Award Costs,Scholar,PIN039007,609.21,
DFID,CSC,28/03/2019,Scholar Allowances,Award Costs,Scholar,PIN039015,699,
DFID,CSC,28/03/2019,Scholar Allowances,Award Costs,Scholar,PIN039035,699,
DFID,CSC,28/03/2019,Scholar Allowances,Award Costs,Scholar,PIN039038,1031.51,
DFID,CSC,28/03/2019,Scholar Allowances,Award Costs,Scholar,PIN039050,699,
DFID,CSC,28/03/2019,Scholar Allowances,Award Costs,Scholar,PIN039064,1597.03,
DFID,CSC,28/03/2019,Scholar Stipend,Award Costs,Scholar,PIN039093,516.4,
DFID,CSC,28/03/2019,Scholar Stipend,Award Costs,Scholar,PIN039097,1084,
DFID,CSC,28/03/2019,Scholar Stipend,Award Costs,Scholar,PIN039098,1330,
DFID,CSC,28/03/2019,Scholar Stipend,Award Costs,Scholar,PIN039099,1330,
DFID,CSC,28/03/2019,Scholar Stipend,Award Costs,Scholar,PIN039100,542,
DFID,CSC,28/03/2019,Scholar Stipend,Award Costs,Scholar,PIN039101,542,
DFID,CSC,28/03/2019,Scholar Stipend,Award Costs,Scholar,PIN039102,1084,
DFID,CSC,28/03/2019,Scholar Stipend,Award Costs,Scholar,PIN039103,1084,
DFID,CSC,28/03/2019,Scholar Stipend,Award Costs,Scholar,PIN039104,1084,
DFID,CSC,28/03/2019,Scholar Stipend,Award Costs,Scholar,PIN039106,1084,
DFID,CSC,28/03/2019,Scholar Stipend,Award Costs,Scholar,PIN039107,1084,
DFID,CSC,28/03/2019,Scholar Stipend,Award Costs,Scholar,PIN039108,1084,
DFID,CSC,28/03/2019,Scholar Stipend,Award Costs,Scholar,PIN039109,1084,
DFID,CSC,28/03/2019,Scholar Stipend,Award Costs,Scholar,PIN039110,1084,
DFID,CSC,28/03/2019,Scholar Stipend,Award Costs,Scholar,PIN039111,1330,
DFID,CSC,28/03/2019,Scholar Stipend,Award Costs,Scholar,PIN039112,1084,
DFID,CSC,28/03/2019,Scholar Stipend,Award Costs,Scholar,PIN039113,524.71,
DFID,CSC,28/03/2019,Scholar Stipend,Programme Costs,Scholar,PIN039114,1330,
DFID,CSC,28/03/2019,Scholar Stipend,Award Costs,Scholar,PIN039115,1084,
DFID,CSC,28/03/2019,Scholar Stipend,Award Costs,Scholar,PIN039116,1084,
DFID,CSC,28/03/2019,Scholar Stipend,Award Costs,Scholar,PIN039117,1084,
DFID,CSC,28/03/2019,Scholar Stipend,Award Costs,Scholar,PIN039118,1330,
DFID,CSC,28/03/2019,Scholar Stipend,Award Costs,Scholar,PIN039119,1084,
DFID,CSC,28/03/2019,Scholar Stipend,Award Costs,Scholar,PIN039120,1084,
DFID,CSC,28/03/2019,Scholar Stipend,Award Costs,Scholar,PIN039121,1084,
DFID,CSC,28/03/2019,Scholar Stipend,Award Costs,Scholar,PIN039122,665,
DFID,CSC,28/03/2019,Scholar Stipend,Award Costs,Scholar,PIN039123,1330,
DFID,CSC,28/03/2019,Scholar Stipend,Award Costs,Scholar,PIN039124,1084,
DFID,CSC,28/03/2019,Scholar Stipend,Award Costs,Scholar,PIN039125,1330,
DFID,CSC,28/03/2019,Scholar Stipend,Award Costs,Scholar,PIN039126,1084,
DFID,CSC,28/03/2019,Scholar Stipend,Award Costs,Scholar,PIN039127,1084,
DFID,CSC,28/03/2019,Scholar Stipend,Award Costs,Scholar,PIN039128,1084,
DFID,CSC,28/03/2019,Scholar Stipend,Award Costs,Scholar,PIN039129,1084,
DFID,CSC,28/03/2019,Scholar Stipend,Award Costs,Scholar,PIN039130,1084,
DFID,CSC,28/03/2019,Scholar Stipend,Award Costs,Scholar,PIN039131,1084,
DFID,CSC,28/03/2019,Scholar Stipend,Award Costs,Scholar,PIN039132,1084,
DFID,CSC,28/03/2019,Scholar Stipend,Award Costs,Scholar,PIN039133,1084,
DFID,CSC,28/03/2019,Scholar Stipend,Award Costs,Scholar,PIN039134,1084,
DFID,CSC,28/03/2019,Scholar Stipend,Award Costs,Scholar,PIN039135,1084,
DFID,CSC,28/03/2019,Scholar Stipend,Award Costs,Scholar,PIN039136,1084,
DFID,CSC,28/03/2019,Scholar Stipend,Award Costs,Scholar,PIN039137,1084,
DFID,CSC,28/03/2019,Scholar Stipend,Award Costs,Scholar,PIN039138,1084,
DFID,CSC,28/03/2019,Scholar Stipend,Award Costs,Scholar,PIN039139,1084,
DFID,CSC,28/03/2019,Scholar Stipend,Award Costs,Scholar,PIN039140,1084,
DFID,CSC,28/03/2019,Scholar Stipend,Award Costs,Scholar,PIN039141,1084,
DFID,CSC,28/03/2019,Scholar Stipend,Award Costs,Scholar,PIN039142,1084,
DFID,CSC,28/03/2019,Scholar Stipend,Award Costs,Scholar,PIN039143,1084,
DFID,CSC,28/03/2019,Scholar Stipend,Award Costs,Scholar,PIN039144,1084,
DFID,CSC,28/03/2019,Scholar Stipend,Award Costs,Scholar,PIN039145,1084,
DFID,CSC,28/03/2019,Scholar Stipend,Award Costs,Scholar,PIN039146,1084,
DFID,CSC,28/03/2019,Scholar Stipend,Award Costs,Scholar,PIN039147,1084,
DFID,CSC,28/03/2019,Scholar Stipend,Award Costs,Scholar,PIN039148,1084,
DFID,CSC,28/03/2019,Scholar Stipend,Award Costs,Scholar,PIN039149,1084,
DFID,CSC,28/03/2019,Scholar Stipend,Award Costs,Scholar,PIN039150,1084,
DFID,CSC,28/03/2019,Scholar Stipend,Award Costs,Scholar,PIN039151,1084,
DFID,CSC,28/03/2019,Scholar Stipend,Award Costs,Scholar,PIN039152,1084,
DFID,CSC,28/03/2019,Scholar Stipend,Award Costs,Scholar,PIN039153,1084,
DFID,CSC,28/03/2019,Scholar Stipend,Award Costs,Scholar,PIN039154,1084,
DFID,CSC,28/03/2019,Scholar Stipend,Award Costs,Scholar,PIN039155,1084,
DFID,CSC,28/03/2019,Scholar Stipend,Award Costs,Scholar,PIN039156,1084,
DFID,CSC,28/03/2019,Scholar Stipend,Award Costs,Scholar,PIN039157,1084,
DFID,CSC,28/03/2019,Scholar Stipend,Award Costs,Scholar,PIN039158,1330,
DFID,CSC,28/03/2019,Scholar Stipend,Award Costs,Scholar,PIN039159,1084,
DFID,CSC,28/03/2019,Scholar Stipend,Award Costs,Scholar,PIN039160,1084,
DFID,CSC,28/03/2019,Scholar Stipend,Award Costs,Scholar,PIN039161,1084,
DFID,CSC,28/03/2019,Scholar Stipend,Award Costs,Scholar,PIN039162,1084,
DFID,CSC,28/03/2019,Scholar Stipend,Award Costs,Scholar,PIN039163,1084,
DFID,CSC,28/03/2019,Scholar Stipend,Award Costs,Scholar,PIN039164,1084,
DFID,CSC,28/03/2019,Scholar Stipend,Award Costs,Scholar,PIN039165,1084,
DFID,CSC,28/03/2019,Scholar Stipend,Award Costs,Scholar,PIN039166,1330,
DFID,CSC,28/03/2019,Scholar Stipend,Award Costs,Scholar,PIN039167,1084,
DFID,CSC,28/03/2019,Scholar Stipend,Award Costs,Scholar,PIN039168,1084,
DFID,CSC,28/03/2019,Scholar Stipend,Award Costs,Scholar,PIN039169,1330,
DFID,CSC,28/03/2019,Scholar Stipend,Award Costs,Scholar,PIN039170,1084,
DFID,CSC,28/03/2019,Scholar Stipend,Award Costs,Scholar,PIN039171,1084,
DFID,CSC,28/03/2019,Scholar Stipend,Award Costs,Scholar,PIN039172,1084,
DFID,CSC,28/03/2019,Scholar Stipend,Award Costs,Scholar,PIN039173,1084,
DFID,CSC,28/03/2019,Scholar Stipend,Award Costs,Scholar,PIN039174,1084,
DFID,CSC,28/03/2019,Scholar Stipend,Award Costs,Scholar,PIN039175,1330,
DFID,CSC,28/03/2019,Scholar Stipend,Award Costs,Scholar,PIN039176,1084,
DFID,CSC,28/03/2019,Scholar Stipend,Award Costs,Scholar,PIN039177,1084,
DFID,CSC,28/03/2019,Scholar Stipend,Award Costs,Scholar,PIN039178,1330,
DFID,CSC,28/03/2019,Scholar Stipend,Award Costs,Scholar,PIN039179,1084,
DFID,CSC,28/03/2019,Scholar Stipend,Award Costs,Scholar,PIN039180,1330,
DFID,CSC,28/03/2019,Scholar Stipend,Award Costs,Scholar,PIN039181,1084,
DFID,CSC,28/03/2019,Scholar Stipend,Award Costs,Scholar,PIN039182,1330,
DFID,CSC,28/03/2019,Scholar Stipend,Award Costs,Scholar,PIN039183,1084,
DFID,CSC,28/03/2019,Scholar Stipend,Award Costs,Scholar,PIN039184,1084,
DFID,CSC,28/03/2019,Scholar Stipend,Award Costs,Scholar,PIN039185,1330,
DFID,CSC,28/03/2019,Scholar Stipend,Award Costs,Scholar,PIN039186,1330,
DFID,CSC,28/03/2019,Scholar Stipend,Award Costs,Scholar,PIN039187,1084,
DFID,CSC,28/03/2019,Scholar Stipend,Award Costs,Scholar,PIN039188,1084,
DFID,CSC,28/03/2019,Scholar Stipend,Award Costs,Scholar,PIN039189,1084,
DFID,CSC,28/03/2019,Scholar Stipend,Award Costs,Scholar,PIN039190,1330,
DFID,CSC,28/03/2019,Scholar Stipend,Award Costs,Scholar,PIN039191,1084,
DFID,CSC,28/03/2019,Scholar Stipend,Award Costs,Scholar,PIN039192,1084,
DFID,CSC,28/03/2019,Scholar Stipend,Award Costs,Scholar,PIN039193,1084,
DFID,CSC,28/03/2019,Scholar Stipend,Award Costs,Scholar,PIN039194,1084,
DFID,CSC,28/03/2019,Scholar Stipend,Award Costs,Scholar,PIN039195,1084,
DFID,CSC,28/03/2019,Scholar Stipend,Award Costs,Scholar,PIN039196,1084,
DFID,CSC,28/03/2019,Scholar Stipend,Award Costs,Scholar,PIN039197,1084,
DFID,CSC,28/03/2019,Scholar Stipend,Award Costs,Scholar,PIN039198,1084,
DFID,CSC,28/03/2019,Scholar Stipend,Award Costs,Scholar,PIN039199,542,
DFID,CSC,28/03/2019,Scholar Stipend,Award Costs,Scholar,PIN039200,1084,
DFID,CSC,28/03/2019,Scholar Stipend,Award Costs,Scholar,PIN039201,542,
DFID,CSC,28/03/2019,Scholar Stipend,Award Costs,Scholar,PIN039202,1084,
DFID,CSC,28/03/2019,Scholar Stipend,Award Costs,Scholar,PIN039203,1084,
DFID,CSC,28/03/2019,Scholar Stipend,Award Costs,Scholar,PIN039204,1084,
DFID,CSC,28/03/2019,Scholar Stipend,Award Costs,Scholar,PIN039205,1084,
DFID,CSC,28/03/2019,Scholar Stipend,Award Costs,Scholar,PIN039206,1084,
DFID,CSC,28/03/2019,Scholar Stipend,Award Costs,Scholar,PIN039207,1084,
DFID,CSC,28/03/2019,Scholar Stipend,Award Costs,Scholar,PIN039208,1084,
DFID,CSC,28/03/2019,Scholar Stipend,Award Costs,Scholar,PIN039209,570.21,
DFID,CSC,28/03/2019,Scholar Stipend,Award Costs,Scholar,PIN039210,1084,
DFID,CSC,28/03/2019,Scholar Stipend,Award Costs,Scholar,PIN039211,1084,
DFID,CSC,28/03/2019,Scholar Stipend,Award Costs,Scholar,PIN039212,1084,
DFID,CSC,28/03/2019,Scholar Stipend,Programme Costs,Scholar,PIN039213,1084,
DFID,CSC,28/03/2019,Scholar Stipend,Award Costs,Scholar,PIN039214,1084,
DFID,CSC,28/03/2019,Scholar Stipend,Award Costs,Scholar,PIN039215,1084,
DFID,CSC,28/03/2019,Scholar Stipend,Award Costs,Scholar,PIN039216,1330,
DFID,CSC,28/03/2019,Scholar Stipend,Award Costs,Scholar,PIN039217,1084,
DFID,CSC,28/03/2019,Scholar Stipend,Award Costs,Scholar,PIN039218,1084,
DFID,CSC,28/03/2019,Scholar Stipend,Award Costs,Scholar,PIN039219,1330,
DFID,CSC,28/03/2019,Scholar Stipend,Award Costs,Scholar,PIN039220,1330,
DFID,CSC,28/03/2019,Scholar Stipend,Award Costs,Scholar,PIN039221,1084,
DFID,CSC,28/03/2019,Scholar Stipend,Award Costs,Scholar,PIN039222,1084,
DFID,CSC,28/03/2019,Scholar Stipend,Award Costs,Scholar,PIN039223,1084,
DFID,CSC,28/03/2019,Scholar Stipend,Award Costs,Scholar,PIN039224,1084,
DFID,CSC,28/03/2019,Scholar Stipend,Award Costs,Scholar,PIN039225,1084,
DFID,CSC,28/03/2019,Scholar Stipend,Award Costs,Scholar,PIN039226,542,
DFID,CSC,28/03/2019,Scholar Stipend,Award Costs,Scholar,PIN039227,1084,
DFID,CSC,28/03/2019,Scholar Stipend,Award Costs,Scholar,PIN039228,1330,
DFID,CSC,28/03/2019,Scholar Stipend,Award Costs,Scholar,PIN039229,1330,
DFID,CSC,28/03/2019,Scholar Stipend,Award Costs,Scholar,PIN039230,1084,
DFID,CSC,28/03/2019,Scholar Stipend,Award Costs,Scholar,PIN039231,1330,
DFID,CSC,28/03/2019,Scholar Stipend,Award Costs,Scholar,PIN039232,1084,
DFID,CSC,28/03/2019,Scholar Stipend,Award Costs,Scholar,PIN039233,1084,
DFID,CSC,28/03/2019,Scholar Stipend,Award Costs,Scholar,PIN039234,1084,
DFID,CSC,28/03/2019,Scholar Stipend,Award Costs,Scholar,PIN039235,1084,
DFID,CSC,28/03/2019,Scholar Stipend,Award Costs,Scholar,PIN039236,542,
DFID,CSC,28/03/2019,Scholar Stipend,Award Costs,Scholar,PIN039237,1084,
DFID,CSC,28/03/2019,Scholar Stipend,Award Costs,Scholar,PIN039238,1084,
DFID,CSC,28/03/2019,Scholar Stipend,Award Costs,Scholar,PIN039239,1084,
DFID,CSC,28/03/2019,Scholar Stipend,Award Costs,Scholar,PIN039240,1084,
DFID,CSC,28/03/2019,Scholar Stipend,Award Costs,Scholar,PIN039242,1084,
DFID,CSC,28/03/2019,Scholar Stipend,Award Costs,Scholar,PIN039243,1084,
DFID,CSC,28/03/2019,Scholar Stipend,Award Costs,Scholar,PIN039244,1084,
DFID,CSC,28/03/2019,Scholar Stipend,Award Costs,Scholar,PIN039245,1084,
DFID,CSC,28/03/2019,Scholar Stipend,Award Costs,Scholar,PIN039246,1084,
DFID,CSC,28/03/2019,Scholar Stipend,Award Costs,Scholar,PIN039247,1084,
DFID,CSC,28/03/2019,Scholar Stipend,Award Costs,Scholar,PIN039248,1084,
DFID,CSC,28/03/2019,Scholar Stipend,Award Costs,Scholar,PIN039249,1084,
DFID,CSC,28/03/2019,Scholar Stipend,Award Costs,Scholar,PIN039250,1084,
DFID,CSC,28/03/2019,Scholar Stipend,Award Costs,Scholar,PIN039251,1084,
DFID,CSC,28/03/2019,Scholar Stipend,Award Costs,Scholar,PIN039252,1084,
DFID,CSC,28/03/2019,Scholar Stipend,Award Costs,Scholar,PIN039253,1084,
DFID,CSC,28/03/2019,Scholar Stipend,Award Costs,Scholar,PIN039254,1084,
DFID,CSC,28/03/2019,Scholar Stipend,Award Costs,Scholar,PIN039255,1084,
DFID,CSC,28/03/2019,Scholar Stipend,Award Costs,Scholar,PIN039256,1330,
DFID,CSC,28/03/2019,Scholar Stipend,Award Costs,Scholar,PIN039257,1084,
DFID,CSC,28/03/2019,Scholar Stipend,Award Costs,Scholar,PIN039258,1084,
DFID,CSC,28/03/2019,Scholar Stipend,Award Costs,Scholar,PIN039259,1084,
DFID,CSC,28/03/2019,Scholar Stipend,Award Costs,Scholar,PIN039260,1084,
DFID,CSC,28/03/2019,Scholar Stipend,Award Costs,Scholar,PIN039261,1084,
DFID,CSC,28/03/2019,Scholar Stipend,Award Costs,Scholar,PIN039262,1084,
DFID,CSC,28/03/2019,Scholar Stipend,Award Costs,Scholar,PIN039263,1084,
DFID,CSC,28/03/2019,Scholar Stipend,Award Costs,Scholar,PIN039264,1330,
DFID,CSC,28/03/2019,Scholar Stipend,Award Costs,Scholar,PIN039265,1330,
DFID,CSC,28/03/2019,Scholar Stipend,Award Costs,Scholar,PIN039266,1084,
DFID,CSC,28/03/2019,Scholar Stipend,Award Costs,Scholar,PIN039267,1084,
DFID,CSC,28/03/2019,Scholar Stipend,Award Costs,Scholar,PIN039268,1330,
DFID,CSC,28/03/2019,Scholar Stipend,Award Costs,Scholar,PIN039269,1084,
DFID,CSC,28/03/2019,Scholar Stipend,Award Costs,Scholar,PIN039270,1330,
DFID,CSC,28/03/2019,Scholar Stipend,Award Costs,Scholar,PIN039271,1084,
DFID,CSC,28/03/2019,Scholar Stipend,Award Costs,Scholar,PIN039272,1330,
DFID,CSC,28/03/2019,Scholar Stipend,Award Costs,Scholar,PIN039273,1084,
DFID,CSC,28/03/2019,Scholar Stipend,Award Costs,Scholar,PIN039274,1084,
DFID,CSC,28/03/2019,Scholar Stipend,Award Costs,Scholar,PIN039275,1330,
DFID,CSC,28/03/2019,Scholar Stipend,Award Costs,Scholar,PIN039276,1084,
DFID,CSC,28/03/2019,Scholar Stipend,Award Costs,Scholar,PIN039277,1330,
DFID,CSC,28/03/2019,Scholar Stipend,Award Costs,Scholar,PIN039278,1084,
DFID,CSC,28/03/2019,Scholar Stipend,Award Costs,Scholar,PIN039279,1084,
DFID,CSC,28/03/2019,Scholar Stipend,Award Costs,Scholar,PIN039280,1330,
DFID,CSC,28/03/2019,Scholar Stipend,Award Costs,Scholar,PIN039281,1330,
DFID,CSC,28/03/2019,Scholar Stipend,Award Costs,Scholar,PIN039282,1330,
DFID,CSC,28/03/2019,Scholar Stipend,Award Costs,Scholar,PIN039283,1330,
DFID,CSC,28/03/2019,Scholar Stipend,Award Costs,Scholar,PIN039284,1084,
DFID,CSC,28/03/2019,Scholar Stipend,Award Costs,Scholar,PIN039285,1084,
DFID,CSC,28/03/2019,Scholar Stipend,Award Costs,Scholar,PIN039286,1084,
DFID,CSC,28/03/2019,Scholar Stipend,Award Costs,Scholar,PIN039287,1084,
DFID,CSC,28/03/2019,Scholar Stipend,Award Costs,Scholar,PIN039288,1330,
DFID,CSC,28/03/2019,Scholar Stipend,Award Costs,Scholar,PIN039289,1084,
DFID,CSC,28/03/2019,Scholar Stipend,Award Costs,Scholar,PIN039290,1084,
DFID,CSC,28/03/2019,Scholar Stipend,Award Costs,Scholar,PIN039291,1084,
DFID,CSC,28/03/2019,Scholar Stipend,Award Costs,Scholar,PIN039292,542,
DFID,CSC,28/03/2019,Scholar Stipend,Award Costs,Scholar,PIN039293,1084,
DFID,CSC,28/03/2019,Scholar Stipend,Award Costs,Scholar,PIN039294,1084,
DFID,CSC,28/03/2019,Scholar Stipend,Award Costs,Scholar,PIN039295,1084,
DFID,CSC,28/03/2019,Scholar Stipend,Award Costs,Scholar,PIN039296,1330,
DFID,CSC,28/03/2019,Scholar Stipend,Award Costs,Scholar,PIN039297,1084,
DFID,CSC,28/03/2019,Scholar Stipend,Award Costs,Scholar,PIN039298,1084,
DFID,CSC,28/03/2019,Scholar Stipend,Award Costs,Scholar,PIN039299,1330,
DFID,CSC,28/03/2019,Scholar Stipend,Award Costs,Scholar,PIN039300,1084,
DFID,CSC,28/03/2019,Scholar Stipend,Award Costs,Scholar,PIN039301,1084,
DFID,CSC,28/03/2019,Scholar Stipend,Award Costs,Scholar,PIN039302,1084,
DFID,CSC,28/03/2019,Scholar Stipend,Award Costs,Scholar,PIN039303,1084,
DFID,CSC,28/03/2019,Scholar Stipend,Award Costs,Scholar,PIN039304,1084,
DFID,CSC,28/03/2019,Scholar Stipend,Award Costs,Scholar,PIN039305,1330,
DFID,CSC,28/03/2019,Scholar Stipend,Award Costs,Scholar,PIN039306,1084,
DFID,CSC,28/03/2019,Scholar Stipend,Programme Costs,Scholar,PIN039307,1330,
DFID,CSC,28/03/2019,Scholar Stipend,Award Costs,Scholar,PIN039308,1084,
DFID,CSC,28/03/2019,Scholar Stipend,Award Costs,Scholar,PIN039309,1084,
DFID,CSC,28/03/2019,Scholar Stipend,Award Costs,Scholar,PIN039310,1084,
DFID,CSC,28/03/2019,Scholar Stipend,Award Costs,Scholar,PIN039311,1330,
DFID,CSC,28/03/2019,Scholar Stipend,Award Costs,Scholar,PIN039312,1084,
DFID,CSC,28/03/2019,Scholar Stipend,Award Costs,Scholar,PIN039313,1084,
DFID,CSC,28/03/2019,Scholar Stipend,Award Costs,Scholar,PIN039314,1330,
DFID,CSC,28/03/2019,Scholar Stipend,Award Costs,Scholar,PIN039315,542,
DFID,CSC,28/03/2019,Scholar Stipend,Award Costs,Scholar,PIN039316,1084,
DFID,CSC,28/03/2019,Scholar Stipend,Award Costs,Scholar,PIN039317,1084,
DFID,CSC,28/03/2019,Scholar Stipend,Award Costs,Scholar,PIN039318,1084,
DFID,CSC,28/03/2019,Scholar Stipend,Award Costs,Scholar,PIN039319,1330,
DFID,CSC,28/03/2019,Scholar Stipend,Award Costs,Scholar,PIN039320,542,
DFID,CSC,28/03/2019,Scholar Stipend,Award Costs,Scholar,PIN039321,1330,
DFID,CSC,28/03/2019,Scholar Stipend,Award Costs,Scholar,PIN039322,1084,
DFID,CSC,28/03/2019,Scholar Stipend,Award Costs,Scholar,PIN039323,1084,
DFID,CSC,28/03/2019,Scholar Stipend,Award Costs,Scholar,PIN039324,1084,
DFID,CSC,28/03/2019,Scholar Stipend,Award Costs,Scholar,PIN039325,1084,
DFID,CSC,28/03/2019,Scholar Stipend,Award Costs,Scholar,PIN039326,1084,
DFID,CSC,28/03/2019,Scholar Stipend,Award Costs,Scholar,PIN039327,1084,
DFID,CSC,28/03/2019,Scholar Stipend,Award Costs,Scholar,PIN039328,1084,
DFID,CSC,28/03/2019,Scholar Stipend,Award Costs,Scholar,PIN039329,1084,
DFID,CSC,28/03/2019,Scholar Stipend,Programme Costs,Scholar,PIN039330,1330,
DFID,CSC,28/03/2019,Scholar Stipend,Award Costs,Scholar,PIN039331,1084,
DFID,CSC,28/03/2019,Scholar Stipend,Award Costs,Scholar,PIN039332,1330,
DFID,CSC,28/03/2019,Scholar Stipend,Award Costs,Scholar,PIN039333,1084,
DFID,CSC,28/03/2019,Scholar Stipend,Award Costs,Scholar,PIN039334,1084,
DFID,CSC,28/03/2019,Scholar Stipend,Award Costs,Scholar,PIN039335,1084,
DFID,CSC,28/03/2019,Scholar Stipend,Award Costs,Scholar,PIN039336,1084,
DFID,CSC,28/03/2019,Scholar Stipend,Award Costs,Scholar,PIN039337,1084,
DFID,CSC,28/03/2019,Scholar Stipend,Award Costs,Scholar,PIN039338,542,
DFID,CSC,28/03/2019,Scholar Stipend,Award Costs,Scholar,PIN039339,1084,
DFID,CSC,28/03/2019,Scholar Stipend,Award Costs,Scholar,PIN039340,1330,
DFID,CSC,28/03/2019,Scholar Stipend,Award Costs,Scholar,PIN039341,1084,
DFID,CSC,28/03/2019,Scholar Stipend,Award Costs,Scholar,PIN039342,1330,
DFID,CSC,28/03/2019,Scholar Stipend,Award Costs,Scholar,PIN039343,542,
DFID,CSC,28/03/2019,Scholar Stipend,Award Costs,Scholar,PIN039344,1330,
DFID,CSC,28/03/2019,Scholar Stipend,Award Costs,Scholar,PIN039345,1084,
DFID,CSC,28/03/2019,Scholar Stipend,Award Costs,Scholar,PIN039346,1084,
DFID,CSC,28/03/2019,Scholar Stipend,Award Costs,Scholar,PIN039347,1084,
DFID,CSC,28/03/2019,Scholar Stipend,Award Costs,Scholar,PIN039348,1084,
DFID,CSC,28/03/2019,Scholar Stipend,Award Costs,Scholar,PIN039349,1084,
DFID,CSC,28/03/2019,Scholar Stipend,Award Costs,Scholar,PIN039350,1330,
DFID,CSC,28/03/2019,Scholar Stipend,Award Costs,Scholar,PIN039351,1084,
DFID,CSC,28/03/2019,Scholar Stipend,Award Costs,Scholar,PIN039352,1330,
DFID,CSC,28/03/2019,Scholar Stipend,Award Costs,Scholar,PIN039353,1084,
DFID,CSC,28/03/2019,Scholar Stipend,Award Costs,Scholar,PIN039354,1084,
DFID,CSC,28/03/2019,Scholar Stipend,Award Costs,Scholar,PIN039355,1084,
DFID,CSC,28/03/2019,Scholar Stipend,Award Costs,Scholar,PIN039356,1084,
DFID,CSC,28/03/2019,Scholar Stipend,Award Costs,Scholar,PIN039357,1084,
DFID,CSC,28/03/2019,Scholar Stipend,Award Costs,Scholar,PIN039358,1084,
DFID,CSC,28/03/2019,Scholar Stipend,Award Costs,Scholar,PIN039359,1084,
DFID,CSC,28/03/2019,Scholar Stipend,Award Costs,Scholar,PIN039360,1330,
DFID,CSC,28/03/2019,Scholar Stipend,Award Costs,Scholar,PIN039361,1084,
DFID,CSC,28/03/2019,Scholar Stipend,Award Costs,Scholar,PIN039362,1084,
DFID,CSC,28/03/2019,Scholar Stipend,Award Costs,Scholar,PIN039363,1084,
DFID,CSC,28/03/2019,Scholar Stipend,Award Costs,Scholar,PIN039364,1084,
DFID,CSC,28/03/2019,Scholar Stipend,Award Costs,Scholar,PIN039365,1084,
DFID,CSC,28/03/2019,Scholar Stipend,Award Costs,Scholar,PIN039366,1084,
DFID,CSC,28/03/2019,Scholar Stipend,Award Costs,Scholar,PIN039367,1084,
DFID,CSC,28/03/2019,Scholar Stipend,Award Costs,Scholar,PIN039368,1330,
DFID,CSC,28/03/2019,Scholar Stipend,Award Costs,Scholar,PIN039369,1084,
DFID,CSC,28/03/2019,Scholar Stipend,Award Costs,Scholar,PIN039370,1084,
DFID,CSC,28/03/2019,Scholar Stipend,Award Costs,Scholar,PIN039371,1084,
DFID,CSC,28/03/2019,Scholar Stipend,Programme Costs,Scholar,PIN039372,1084,
DFID,CSC,28/03/2019,Scholar Stipend,Programme Costs,Scholar,PIN039373,1330,
DFID,CSC,28/03/2019,Scholar Stipend,Award Costs,Scholar,PIN039374,1084,
DFID,CSC,28/03/2019,Scholar Stipend,Award Costs,Scholar,PIN039375,1084,
DFID,CSC,28/03/2019,Scholar Stipend,Award Costs,Scholar,PIN039376,1084,
DFID,CSC,28/03/2019,Scholar Stipend,Award Costs,Scholar,PIN039377,1084,
DFID,CSC,28/03/2019,Scholar Stipend,Award Costs,Scholar,PIN039378,1084,
DFID,CSC,28/03/2019,Scholar Stipend,Award Costs,Scholar,PIN039379,1084,
DFID,CSC,28/03/2019,Scholar Stipend,Award Costs,Scholar,PIN039380,1084,
DFID,CSC,28/03/2019,Scholar Stipend,Award Costs,Scholar,PIN039381,1084,
DFID,CSC,28/03/2019,Scholar Stipend,Award Costs,Scholar,PIN039382,1084,
DFID,CSC,28/03/2019,Scholar Stipend,Award Costs,Scholar,PIN039383,1084,
DFID,CSC,28/03/2019,Scholar Stipend,Award Costs,Scholar,PIN039384,1084,
DFID,CSC,28/03/2019,Scholar Stipend,Award Costs,Scholar,PIN039385,1084,
DFID,CSC,28/03/2019,Scholar Stipend,Award Costs,Scholar,PIN039386,1084,
DFID,CSC,28/03/2019,Scholar Stipend,Award Costs,Scholar,PIN039387,1084,
DFID,CSC,28/03/2019,Scholar Stipend,Award Costs,Scholar,PIN039388,1084,
DFID,CSC,28/03/2019,Scholar Stipend,Award Costs,Scholar,PIN039389,1084,
DFID,CSC,28/03/2019,Scholar Stipend,Award Costs,Scholar,PIN039390,1084,
DFID,CSC,28/03/2019,Scholar Stipend,Award Costs,Scholar,PIN039391,1084,
DFID,CSC,28/03/2019,Scholar Stipend,Award Costs,Scholar,PIN039392,1084,
DFID,CSC,28/03/2019,Scholar Stipend,Award Costs,Scholar,PIN039393,1084,
DFID,CSC,28/03/2019,Scholar Stipend,Award Costs,Scholar,PIN039394,1084,
DFID,CSC,28/03/2019,Scholar Stipend,Award Costs,Scholar,PIN039395,1330,
DFID,CSC,28/03/2019,Scholar Stipend,Award Costs,Scholar,PIN039396,1084,
DFID,CSC,28/03/2019,Scholar Stipend,Award Costs,Scholar,PIN039397,1084,
DFID,CSC,28/03/2019,Scholar Stipend,Award Costs,Scholar,PIN039398,1084,
DFID,CSC,28/03/2019,Scholar Stipend,Award Costs,Scholar,PIN039399,1084,
DFID,CSC,28/03/2019,Scholar Stipend,Award Costs,Scholar,PIN039400,1084,
DFID,CSC,28/03/2019,Scholar Stipend,Award Costs,Scholar,PIN039401,1084,
DFID,CSC,28/03/2019,Scholar Stipend,Award Costs,Scholar,PIN039402,1084,
DFID,CSC,28/03/2019,Scholar Stipend,Award Costs,Scholar,PIN039403,1084,
DFID,CSC,28/03/2019,Scholar Stipend,Award Costs,Scholar,PIN039404,1084,
DFID,CSC,28/03/2019,Scholar Stipend,Award Costs,Scholar,PIN039405,1084,
DFID,CSC,28/03/2019,Scholar Stipend,Award Costs,Scholar,PIN039406,1330,
DFID,CSC,28/03/2019,Scholar Stipend,Award Costs,Scholar,PIN039407,542,
DFID,CSC,28/03/2019,Scholar Stipend,Award Costs,Scholar,PIN039408,1084,
DFID,CSC,28/03/2019,Scholar Stipend,Award Costs,Scholar,PIN039409,1084,
DFID,CSC,28/03/2019,Scholar Stipend,Award Costs,Scholar,PIN039410,1084,
DFID,CSC,28/03/2019,Scholar Stipend,Award Costs,Scholar,PIN039411,1330,
DFID,CSC,28/03/2019,Scholar Stipend,Award Costs,Scholar,PIN039412,1330,
DFID,CSC,28/03/2019,Scholar Stipend,Award Costs,Scholar,PIN039413,1084,
DFID,CSC,28/03/2019,Scholar Stipend,Award Costs,Scholar,PIN039414,1084,
DFID,CSC,28/03/2019,Scholar Stipend,Award Costs,Scholar,PIN039415,1084,
DFID,CSC,28/03/2019,Scholar Stipend,Award Costs,Scholar,PIN039416,1084,
DFID,CSC,28/03/2019,Scholar Stipend,Award Costs,Scholar,PIN039417,1084,
DFID,CSC,28/03/2019,Scholar Stipend,Award Costs,Scholar,PIN039418,1330,
DFID,CSC,28/03/2019,Scholar Stipend,Award Costs,Scholar,PIN039419,1084,
DFID,CSC,28/03/2019,Scholar Stipend,Award Costs,Scholar,PIN039420,1330,
DFID,CSC,28/03/2019,Scholar Stipend,Award Costs,Scholar,PIN039421,1084,
DFID,CSC,28/03/2019,Scholar Stipend,Award Costs,Scholar,PIN039422,1330,
DFID,CSC,28/03/2019,Scholar Stipend,Award Costs,Scholar,PIN039423,1084,
DFID,CSC,28/03/2019,Scholar Stipend,Award Costs,Scholar,PIN039424,1084,
DFID,CSC,28/03/2019,Scholar Stipend,Award Costs,Scholar,PIN039425,1330,
DFID,CSC,28/03/2019,Scholar Stipend,Award Costs,Scholar,PIN039426,1330,
DFID,CSC,28/03/2019,Scholar Stipend,Award Costs,Scholar,PIN039427,1084,
DFID,CSC,28/03/2019,Scholar Stipend,Award Costs,Scholar,PIN039428,1084,
DFID,CSC,28/03/2019,Scholar Stipend,Award Costs,Scholar,PIN039429,1084,
DFID,CSC,28/03/2019,Scholar Stipend,Award Costs,Scholar,PIN039430,1084,
DFID,CSC,28/03/2019,Scholar Stipend,Award Costs,Scholar,PIN039431,1084,
DFID,CSC,28/03/2019,Scholar Stipend,Award Costs,Scholar,PIN039432,1084,
DFID,CSC,28/03/2019,Scholar Stipend,Award Costs,Scholar,PIN039433,1084,
DFID,CSC,28/03/2019,Scholar Stipend,Award Costs,Scholar,PIN039434,1084,
DFID,CSC,28/03/2019,Scholar Stipend,Award Costs,Scholar,PIN039435,1330,
DFID,CSC,28/03/2019,Scholar Stipend,Award Costs,Scholar,PIN039436,1084,
DFID,CSC,28/03/2019,Scholar Stipend,Award Costs,Scholar,PIN039437,1084,
DFID,CSC,28/03/2019,Scholar Stipend,Award Costs,Scholar,PIN039438,1330,
DFID,CSC,28/03/2019,Scholar Stipend,Award Costs,Scholar,PIN039439,1084,
DFID,CSC,28/03/2019,Scholar Stipend,Award Costs,Scholar,PIN039440,1084,
DFID,CSC,28/03/2019,Scholar Stipend,Award Costs,Scholar,PIN039441,1330,
DFID,CSC,28/03/2019,Scholar Stipend,Award Costs,Scholar,PIN039442,1084,
DFID,CSC,28/03/2019,Scholar Stipend,Award Costs,Scholar,PIN039443,1084,
DFID,CSC,28/03/2019,Scholar Stipend,Award Costs,Scholar,PIN039444,1084,
DFID,CSC,28/03/2019,Scholar Stipend,Award Costs,Scholar,PIN039445,1330,
DFID,CSC,28/03/2019,Scholar Stipend,Award Costs,Scholar,PIN039446,1330,
DFID,CSC,28/03/2019,Scholar Stipend,Award Costs,Scholar,PIN039447,1084,
DFID,CSC,28/03/2019,Scholar Stipend,Award Costs,Scholar,PIN039448,1084,
DFID,CSC,28/03/2019,Scholar Stipend,Award Costs,Scholar,PIN039449,1084,
DFID,CSC,28/03/2019,Scholar Stipend,Award Costs,Scholar,PIN039450,1330,
DFID,CSC,28/03/2019,Scholar Stipend,Award Costs,Scholar,PIN039451,1330,
DFID,CSC,28/03/2019,Scholar Stipend,Award Costs,Scholar,PIN039452,1084,
DFID,CSC,28/03/2019,Scholar Stipend,Award Costs,Scholar,PIN039453,1084,
DFID,CSC,28/03/2019,Scholar Stipend,Award Costs,Scholar,PIN039454,1084,
DFID,CSC,28/03/2019,Scholar Stipend,Award Costs,Scholar,PIN039455,1084,
DFID,CSC,28/03/2019,Scholar Stipend,Award Costs,Scholar,PIN039456,1330,
DFID,CSC,28/03/2019,Scholar Stipend,Award Costs,Scholar,PIN039457,1330,
DFID,CSC,28/03/2019,Scholar Stipend,Award Costs,Scholar,PIN039458,1330,
DFID,CSC,28/03/2019,Scholar Stipend,Award Costs,Scholar,PIN039459,1330,
DFID,CSC,28/03/2019,Scholar Stipend,Award Costs,Scholar,PIN039460,1084,
DFID,CSC,28/03/2019,Scholar Stipend,Award Costs,Scholar,PIN039461,1084,
DFID,CSC,28/03/2019,Scholar Stipend,Award Costs,Scholar,PIN039462,542,
DFID,CSC,28/03/2019,Scholar Stipend,Award Costs,Scholar,PIN039463,1084,
DFID,CSC,28/03/2019,Scholar Stipend,Award Costs,Scholar,PIN039465,1084,
DFID,CSC,28/03/2019,Scholar Stipend,Award Costs,Scholar,PIN039466,1330,
DFID,CSC,28/03/2019,Scholar Stipend,Award Costs,Scholar,PIN039467,1084,
DFID,CSC,28/03/2019,Scholar Stipend,Award Costs,Scholar,PIN039468,1084,
DFID,CSC,28/03/2019,Scholar Stipend,Award Costs,Scholar,PIN039469,1084,
DFID,CSC,28/03/2019,Scholar Stipend,Award Costs,Scholar,PIN039470,1084,
DFID,CSC,28/03/2019,Scholar Stipend,Award Costs,Scholar,PIN039471,1084,
DFID,CSC,28/03/2019,Scholar Stipend,Award Costs,Scholar,PIN039472,1330,
DFID,CSC,28/03/2019,Scholar Stipend,Award Costs,Scholar,PIN039473,1084,
DFID,CSC,28/03/2019,Scholar Stipend,Award Costs,Scholar,PIN039474,1084,
DFID,CSC,28/03/2019,Scholar Stipend,Award Costs,Scholar,PIN039475,1084,
DFID,CSC,28/03/2019,Scholar Stipend,Award Costs,Scholar,PIN039476,1330,
DFID,CSC,28/03/2019,Scholar Stipend,Award Costs,Scholar,PIN039477,1084,
DFID,CSC,28/03/2019,Scholar Stipend,Award Costs,Scholar,PIN039478,1330,
DFID,CSC,28/03/2019,Scholar Stipend,Award Costs,Scholar,PIN039479,1084,
DFID,CSC,28/03/2019,Scholar Stipend,Award Costs,Scholar,PIN039480,1084,
DFID,CSC,28/03/2019,Scholar Stipend,Award Costs,Scholar,PIN039481,542,
DFID,CSC,28/03/2019,Scholar Stipend,Award Costs,Scholar,PIN039482,1084,
DFID,CSC,28/03/2019,Scholar Stipend,Award Costs,Scholar,PIN039483,1084,
DFID,CSC,28/03/2019,Scholar Stipend,Award Costs,Scholar,PIN039484,1330,
DFID,CSC,28/03/2019,Scholar Stipend,Award Costs,Scholar,PIN039485,1084,
DFID,CSC,28/03/2019,Scholar Stipend,Award Costs,Scholar,PIN039486,1084,
DFID,CSC,28/03/2019,Scholar Stipend,Award Costs,Scholar,PIN039487,1330,
DFID,CSC,28/03/2019,Scholar Stipend,Award Costs,Scholar,PIN039488,1084,
DFID,CSC,28/03/2019,Scholar Stipend,Award Costs,Scholar,PIN039489,1084,
DFID,CSC,28/03/2019,Scholar Stipend,Award Costs,Scholar,PIN039490,1084,
DFID,CSC,28/03/2019,Scholar Stipend,Award Costs,Scholar,PIN039491,1330,
DFID,CSC,28/03/2019,Scholar Stipend,Award Costs,Scholar,PIN039492,1084,
DFID,CSC,28/03/2019,Scholar Stipend,Award Costs,Scholar,PIN039493,1084,
DFID,CSC,28/03/2019,Scholar Stipend,Award Costs,Scholar,PIN039494,1084,
DFID,CSC,28/03/2019,Scholar Stipend,Award Costs,Scholar,PIN039495,1084,
DFID,CSC,28/03/2019,Scholar Stipend,Award Costs,Scholar,PIN039496,1084,
DFID,CSC,28/03/2019,Scholar Stipend,Award Costs,Scholar,PIN039497,1084,
DFID,CSC,28/03/2019,Scholar Stipend,Award Costs,Scholar,PIN039498,1084,
DFID,CSC,28/03/2019,Scholar Stipend,Award Costs,Scholar,PIN039499,1084,
DFID,CSC,28/03/2019,Scholar Stipend,Award Costs,Scholar,PIN039500,1084,
DFID,CSC,28/03/2019,Scholar Stipend,Award Costs,Scholar,PIN039501,1084,
DFID,CSC,28/03/2019,Scholar Stipend,Award Costs,Scholar,PIN039502,1084,
DFID,CSC,28/03/2019,Scholar Stipend,Award Costs,Scholar,PIN039503,542,
DFID,CSC,28/03/2019,Scholar Stipend,Award Costs,Scholar,PIN039504,1084,
DFID,CSC,28/03/2019,Scholar Stipend,Award Costs,Scholar,PIN039505,1084,
DFID,CSC,28/03/2019,Scholar Stipend,Award Costs,Scholar,PIN039506,1084,
DFID,CSC,28/03/2019,Scholar Stipend,Award Costs,Scholar,PIN039507,1084,
DFID,CSC,28/03/2019,Scholar Stipend,Award Costs,Scholar,PIN039508,1330,
DFID,CSC,28/03/2019,Scholar Stipend,Award Costs,Scholar,PIN039509,1330,
DFID,CSC,28/03/2019,Scholar Stipend,Award Costs,Scholar,PIN039510,1084,
DFID,CSC,28/03/2019,Scholar Stipend,Award Costs,Scholar,PIN039511,1084,
DFID,CSC,28/03/2019,Scholar Stipend,Award Costs,Scholar,PIN039512,1330,
DFID,CSC,28/03/2019,Scholar Stipend,Award Costs,Scholar,PIN039513,1084,
DFID,CSC,28/03/2019,Scholar Stipend,Award Costs,Scholar,PIN039514,1084,
DFID,CSC,28/03/2019,Scholar Stipend,Award Costs,Scholar,PIN039515,1084,
DFID,CSC,28/03/2019,Scholar Stipend,Award Costs,Scholar,PIN039516,1330,
DFID,CSC,28/03/2019,Scholar Stipend,Programme Costs,Scholar,PIN039517,1330,
DFID,CSC,28/03/2019,Scholar Stipend,Programme Costs,Scholar,PIN039518,1084,
DFID,CSC,28/03/2019,Scholar Stipend,Award Costs,Scholar,PIN039519,1084,
DFID,CSC,28/03/2019,Scholar Stipend,Award Costs,Scholar,PIN039520,1084,
DFID,CSC,28/03/2019,Scholar Stipend,Award Costs,Scholar,PIN039521,1330,
DFID,CSC,28/03/2019,Scholar Stipend,Award Costs,Scholar,PIN039522,1084,
DFID,CSC,28/03/2019,Scholar Stipend,Award Costs,Scholar,PIN039523,1330,
DFID,CSC,28/03/2019,Scholar Stipend,Award Costs,Scholar,PIN039524,542,
DFID,CSC,28/03/2019,Scholar Stipend,Award Costs,Scholar,PIN039525,1084,
DFID,CSC,28/03/2019,Scholar Stipend,Award Costs,Scholar,PIN039526,1084,
DFID,CSC,28/03/2019,Scholar Stipend,Award Costs,Scholar,PIN039527,1084,
DFID,CSC,28/03/2019,Scholar Stipend,Award Costs,Scholar,PIN039528,1330,
DFID,CSC,28/03/2019,Scholar Stipend,Award Costs,Scholar,PIN039529,1084,
DFID,CSC,28/03/2019,Scholar Stipend,Award Costs,Scholar,PIN039530,1084,
DFID,CSC,28/03/2019,Scholar Stipend,Award Costs,Scholar,PIN039531,1084,
DFID,CSC,28/03/2019,Scholar Stipend,Award Costs,Scholar,PIN039532,1084,
DFID,CSC,28/03/2019,Scholar Stipend,Award Costs,Scholar,PIN039533,1084,
DFID,CSC,28/03/2019,Scholar Stipend,Award Costs,Scholar,PIN039534,1330,
DFID,CSC,28/03/2019,Scholar Stipend,Award Costs,Scholar,PIN039535,1084,
DFID,CSC,28/03/2019,Scholar Stipend,Award Costs,Scholar,PIN039536,1084,
DFID,CSC,28/03/2019,Scholar Stipend,Award Costs,Scholar,PIN039537,1084,
DFID,CSC,28/03/2019,Scholar Stipend,Award Costs,Scholar,PIN039538,1084,
DFID,CSC,28/03/2019,Scholar Stipend,Award Costs,Scholar,PIN039539,1084,
DFID,CSC,28/03/2019,Scholar Stipend,Award Costs,Scholar,PIN039540,1330,
DFID,CSC,28/03/2019,Scholar Stipend,Award Costs,Scholar,PIN039541,1084,
DFID,CSC,28/03/2019,Scholar Stipend,Award Costs,Scholar,PIN039542,1084,
DFID,CSC,28/03/2019,Scholar Stipend,Award Costs,Scholar,PIN039543,1330,
DFID,CSC,28/03/2019,Scholar Stipend,Award Costs,Scholar,PIN039544,1084,
DFID,CSC,28/03/2019,Scholar Stipend,Award Costs,Scholar,PIN039545,1084,
DFID,CSC,28/03/2019,Scholar Stipend,Award Costs,Scholar,PIN039546,1084,
DFID,CSC,28/03/2019,Scholar Stipend,Award Costs,Scholar,PIN039547,1084,
DFID,CSC,28/03/2019,Scholar Stipend,Award Costs,Scholar,PIN039548,1084,
DFID,CSC,28/03/2019,Scholar Stipend,Award Costs,Scholar,PIN039550,1084,
DFID,CSC,28/03/2019,Scholar Stipend,Award Costs,Scholar,PIN039551,1084,
DFID,CSC,28/03/2019,Scholar Stipend,Award Costs,Scholar,PIN039552,1084,
DFID,CSC,28/03/2019,Scholar Stipend,Award Costs,Scholar,PIN039553,1084,
DFID,CSC,28/03/2019,Scholar Stipend,Award Costs,Scholar,PIN039554,1084,
DFID,CSC,28/03/2019,Scholar Allowances,Award Costs,Scholar,PIN039562,580,
DFID,CSC,28/03/2019,Scholar Allowances,Award Costs,Scholar,PIN039600,580,
DFID,CSC,29/03/2019,Scholar Engagement,Programme Costs,TFW Printers,PIN039719,91,
DFID,CSC,29/03/2019,Scholar Engagement,Programme Costs,TFW Printers,PIN039719,455,
DFID,CSC,29/03/2019,Alumni Engagement,Admin Costs,TFW Printers,PIN039721,3890,
DFID,CSC,29/03/2019,Alumni Engagement,Programme Costs,TFW Printers,PIN039723,33953,
DFID,CSC,29/03/2019,Scholar Engagement,Programme Costs,Future Learn Limited,PIN039725,3200,
DFID,CSC,29/03/2019,Scholar Engagement,Programme Costs,Future Learn Limited,PIN039725,16000,
DFID,CSC,29/03/2019,Tuition Fee,Award Costs,University of Southampton,PIN039726,3178,
DFID,CSC,29/03/2019,Tuition Fee,Award Costs,University of Southampton,PIN039726,38025,Tuition fees for 7 scholars
DFID,CSC,29/03/2019,Tuition Fee,Award Costs,Leeds Beckett University,PIN039728,5000,
DFID,CSC,29/03/2019,Tuition Fee,Award Costs,Leeds Beckett University,PIN039728,45000,Tuition fees for 9 scholars
DFID,CSC,29/03/2019,Tuition Fee,Award Costs,The Open University,PIN039729,65146,Tuition fees for 19 scholars
BEIS,CSC,29/03/2019,Scholar Allowances,Award Costs,Scholar,PIN039733,900,
DFID,CSC,29/03/2019,Scholar Allowances,Award Costs,Scholar,PIN039734,600,
DFID,CSC,29/03/2019,Scholar Allowances,Award Costs,Scholar,PIN039735,510,
DFID,CSC,29/03/2019,Scholar Allowances,Award Costs,Scholar,PIN039736,600,
BEIS,CSC,29/03/2019,Scholar Allowances,Award Costs,Scholar,PIN039737,1000,
BEIS,CSC,29/03/2019,Scholar Allowances,Award Costs,Scholar,PIN039740,550,
DFID,CSC,29/03/2019,Scholar Engagement,Programme Costs,Commissioner,PIN039744,180,
DFID,CSC,29/03/2019,Commission Meetings,Admin Costs,Commissioner,PIN039744,142.5,
DFID,CSC,29/03/2019,Commission Meetings,Admin Costs,Commissioner,PIN039744,410,
DFID,CSC,29/03/2019,Commission Meetings,Admin Costs,Commissioner,PIN039744,410,
DFID,CSC,29/03/2019,Tuition Fee,Award Costs,University of Southampton,PIN039745,2250,
DFID,CSC,29/03/2019,Tuition Fee,Award Costs,University of Strathclyde,PIN039746,7800,
DFID,CSC,29/03/2019,Tuition Fee,Award Costs,University of Strathclyde,PIN039747,16800,
DFID,CSC,29/03/2019,Tuition Fee,Award Costs,The Open University,PIN039749,23634,
DFID,CSC,29/03/2019,Immigration Health Surcharge,Award Costs,Scholar,PIN039751,300,
DFID,CSC,29/03/2019,Visa Costs,Award Costs,Scholar,PIN039751,494.2,
DFID,CSC,29/03/2019,Visa Costs,Award Costs,Leeds Beckett University,PIN039753,123.27,
DFID,CSC,29/03/2019,Scholar Allowances,Award Costs,Leeds Beckett University,PIN039753,225,
DFID,CSC,29/03/2019,Scholar Allowances,Award Costs,Leeds Beckett University,PIN039753,200,
DFID,CSC,29/03/2019,Scholar Travel,Award Costs,Leeds Beckett University,PIN039753,589.87,
DFID,CSC,29/03/2019,Scholar Allowances,Award Costs,The University of Leeds,PIN039754,400,
DFID,CSC,29/03/2019,Scholar Allowances,Award Costs,The University of Leeds,PIN039754,1350,
DFID,CSC,29/03/2019,Tuition Fee,Award Costs,Queen Mary University of London,PIN039755,15600,
DFID,CSC,29/03/2019,Tuition Fee,Award Costs,Queen Mary University of London,PIN039755,18500,
DFID,CSC,29/03/2019,Tuition Fee,Award Costs,Queen Mary University of London,PIN039755,11336,
DFID,CSC,29/03/2019,Tuition Fee,Award Costs,Queen Mary University of London,PIN039755,15550,
DFID,CSC,29/03/2019,Tuition Fee,Award Costs,Queen Mary University of London,PIN039755,13120,
DFID,CSC,29/03/2019,Tuition Fee,Award Costs,Queen Mary University of London,PIN039755,32040,Tuition fees for 1 scholar
DFID,CSC,29/03/2019,Tuition Fee,Award Costs,Queen Mary University of London,PIN039755,15550,
DFID,CSC,29/03/2019,Tuition Fee,Award Costs,Queen Mary University of London,PIN039755,16560,
DFID,CSC,29/03/2019,Award Support Costs,Award Costs,University of Plymouth,PIN039756,5000,
DFID,CSC,29/03/2019,Tuition Fee,Award Costs,University of Plymouth,PIN039756,12260,
DFID,CSC,29/03/2019,Award Support Costs,Award Costs,University of Plymouth,PIN039757,3500,
DFID,CSC,29/03/2019,Tuition Fee,Award Costs,University of Plymouth,PIN039757,12260,
DFID,CSC,29/03/2019,Tuition Fee,Award Costs,Aberystwyth University,PIN039758,12600,
BEIS,CSC,29/03/2019,Award Support Costs,Award Costs,Kings College London,PIN039759,2500,
DFID,CSC,29/03/2019,Tuition Fee,Award Costs,University of Manchester,PIN039760,18000,
DFID,CSC,29/03/2019,Tuition Fee,Award Costs,University of Exeter,PIN039761,18000,
DFID,CSC,29/03/2019,Tuition Fee,Award Costs,London School of Economics,PIN039762,14323.2,
DFID,CSC,29/03/2019,Tuition Fee,Award Costs,Goldsmiths College,PIN039763,10480,
BEIS,CSC,29/03/2019,Award Support Costs,Award Costs,Imperial College London,PIN039764,2500,
DFID,CSC,29/03/2019,Award Support Costs,Award Costs,University of Durham,PIN039765,1400,
DFID,CSC,29/03/2019,Award Support Costs,Award Costs,University of Durham,PIN039766,1400,
DFID,CSC,29/03/2019,Tuition Fee,Award Costs,Leeds Beckett University,PIN039767,12500,
DFID,CSC,29/03/2019,Scholar Travel,Award Costs,Leeds Beckett University,PIN039767,674,
DFID,CSC,29/03/2019,Award Support Costs,Award Costs,University of Leicester,PIN039768,800,
DFID,CSC,29/03/2019,Scholar Allowances,Award Costs,University of Bristol,PIN039770,180.85,
DFID,CSC,29/03/2019,Scholar Travel,Award Costs,University of Bristol,PIN039770,356.96,
DFID,CSC,29/03/2019,Scholar Allowances,Award Costs,University of West of Scotland,PIN039771,275,
DFID,CSC,29/03/2019,Scholar Travel,Award Costs,University of West of Scotland,PIN039771,530,
DFID,CSC,29/03/2019,Scholar Travel,Award Costs,University of West of Scotland,PIN039771,384.96,
DFID,CSC,29/03/2019,Scholar Allowances,Award Costs,University of West of Scotland,PIN039771,225,
DFID,CSC,29/03/2019,Scholar Allowances,Award Costs,University of West of Scotland,PIN039771,200,
DFID,CSC,29/03/2019,Tuition Fee,Programme Costs,Glasgow Caledonian University,PIN039772,10080,
DFID,CSC,29/03/2019,Award Support Costs,Award Costs,Countess of Chester Hospital - NHS,PIN039773,250,
DFID,CSC,29/03/2019,Award Support Costs,Award Costs,Countess of Chester Hospital - NHS,PIN039773,800,
DFID,CSC,29/03/2019,Award Support Costs,Award Costs,University of Surrey,PIN039774,5000,
DFID,CSC,29/03/2019,Tuition Fee,Award Costs,Magdalene College,PIN039775,18000,
DFID,CSC,29/03/2019,Award Support Costs,Award Costs,The University of Edinburgh,PIN039776,1000,
DFID,CSC,29/03/2019,Tuition Fee,Award Costs,University of Liverpool,PIN039777,15640,
DFID,CSC,29/03/2019,Tuition Fee,Award Costs,University of Liverpool,PIN039778,11240,
DFID,CSC,29/03/2019,Tuition Fee,Award Costs,Green Templeton College,PIN039779,12280,
DFID,CSC,29/03/2019,Scholar Travel,Award Costs,University of West of Scotland,PIN039780,398.9,
DFID,CSC,29/03/2019,Scholar Travel,Award Costs,University of West of Scotland,PIN039780,434.38,
DFID,CSC,29/03/2019,Scholar Allowances,Award Costs,University of West of Scotland,PIN039780,225,
DFID,CSC,29/03/2019,Scholar Allowances,Award Costs,University of West of Scotland,PIN039780,200,
DFID,CSC,29/03/2019,Scholar Travel,Award Costs,University of West of Scotland,PIN039781,682.3,
DFID,CSC,29/03/2019,Scholar Travel,Award Costs,University of West of Scotland,PIN039781,651.83,
DFID,CSC,29/03/2019,Scholar Allowances,Award Costs,University of West of Scotland,PIN039781,225,
DFID,CSC,29/03/2019,Scholar Allowances,Award Costs,University of West of Scotland,PIN039781,200,
BEIS,CSC,29/03/2019,Award Support Costs,Award Costs,University of Glasgow,PIN039782,2500,
BEIS,CSC,29/03/2019,Award Support Costs,Award Costs,The University of Leeds,PIN039783,2500,
DFID,CSC,29/03/2019,Scholar Allowances,Award Costs,University of Bristol,PIN039784,300,
DFID,CSC,29/03/2019,Scholar Travel,Award Costs,University of Bristol,PIN039784,423.99,
BEIS,CSC,29/03/2019,Award Support Costs,Award Costs,The University of Edinburgh,PIN039786,2500,
DFID,CSC,29/03/2019,Scholar Travel,Award Costs,The University of Leeds,PIN039787,146.4,
DFID,CSC,29/03/2019,Scholar Travel,Award Costs,The University of Leeds,PIN039787,4717.08,
DFID,CSC,29/03/2019,Visa Costs,Award Costs,University of Liverpool,PIN039788,459.6,
DFID,CSC,29/03/2019,Scholar Allowances,Award Costs,University of Liverpool,PIN039788,1000,
DFID,CSC,29/03/2019,Scholar Travel,Award Costs,University of Liverpool,PIN039788,2740.61,
DFID,CSC,29/03/2019,Scholar Travel,Award Costs,University of Liverpool,PIN039788,2004.95,
DFID,CSC,29/03/2019,Scholar Travel,Award Costs,The University of Leeds,PIN039791,-671.58,
DFID,CSC,29/03/2019,Award Support Costs,Award Costs,Liverpool School of Tropical Medicine,PIN039792,1500,
DFID,CSC,29/03/2019,Tuition Fee,Award Costs,Liverpool School of Tropical Medicine,PIN039792,10500,
DFID,CSC,29/03/2019,Scholar Travel,Award Costs,Aberystwyth University,PIN039793,25,
DFID,CSC,29/03/2019,Scholar Travel,Award Costs,Aberystwyth University,PIN039793,508.77,
DFID,CSC,29/03/2019,Scholar Travel,Award Costs,Aberystwyth University,PIN039793,1079,
DFID,CSC,29/03/2019,Scholar Allowances,Award Costs,The University of Edinburgh,PIN039795,-828,
DFID,CSC,29/03/2019,Tuition Fee,Award Costs,The University of Edinburgh,PIN039796,-2400,
DFID,CSC,29/03/2019,Tuition Fee,Award Costs,University of Plymouth,PIN039797,10248,
DFID,CSC,29/03/2019,Award Support Costs,Award Costs,Royal Veterinary College,PIN039798,10000,
DFID,CSC,29/03/2019,Tuition Fee,Award Costs,Royal Veterinary College,PIN039798,23380,
DFID,CSC,29/03/2019,Tuition Fee,Award Costs,Royal Veterinary College,PIN039799,-5380,
DFID,CSC,29/03/2019,Award Support Costs,Award Costs,Royal Veterinary College,PIN039800,-5000,
DFID,CSC,29/03/2019,Tuition Fee,Award Costs,BATH SPA UNIVERSITY,PIN039801,12900,
DFID,CSC,29/03/2019,Tuition Fee,Award Costs,De Montfort University,PIN039802,13100,
DFID,CSC,29/03/2019,Tuition Fee,Award Costs,Liverpool John Moores University,PIN039803,14450,
DFID,CSC,29/03/2019,Tuition Fee,Award Costs,Liverpool John Moores University,PIN039804,-1200,
DFID,CSC,29/03/2019,Scholar Engagement,Programme Costs,Cumberland Lodge Enterprises Limited,PIN039805,55.69,
DFID,CSC,29/03/2019,Scholar Engagement,Programme Costs,Cumberland Lodge Enterprises Limited,PIN039805,11597.46,
BEIS,CSC,29/03/2019,Award Support Costs,Award Costs,The University of York,PIN039806,2500,
BEIS,CSC,29/03/2019,Award Support Costs,Award Costs,University of Oxford,PIN039807,2500,
DFID,CSC,29/03/2019,Scholar Engagement,Programme Costs,Diversity Travel,PIN039808,29689.86,
DFID,CSC,29/03/2019,Secretariat Service Provision,Programme Costs,Jon Spaull,PIN039809,420,
DFID,CSC,29/03/2019,Scholar Engagement,Programme Costs,Jon Spaull,PIN039809,2100,
DFID,CSC,12/03/2019,Scholar Stipend,Award Costs,Scholar,PRF000126,-534,
DFID,CSC,19/03/2019,Alumni Engagement,Programme Costs,Amex,NOM000821,517.72,
DFID,CSC,19/03/2019,Alumni Engagement,Programme Costs,Amex,NOM000822,518.25,
DFID,CSC,19/03/2019,Alumni Engagement,Programme Costs,Amex,NOM000823,526.31,
DFID,CSC,19/03/2019,Alumni Engagement,Programme Costs,Amex,NOM000824,989.84,
DFID,CSC,01/03/2019,Bank Charges,Award Costs,MasterCard Prepaid Management Services Ltd,PIN038392,16.47,
DFID,CSC,01/03/2019,Scholar Allowances,Award Costs,Scholar,PIN038392,421,
DFID,CSC,01/03/2019,Scholar Stipend,Award Costs,Scholar,PIN038392,1226.44,
DFID,CSC,07/03/2019,Scholar Stipend,Award Costs,Scholar,PIN038275,1084,
DFID,CSC,29/03/2019,Scholar Travel,Award Costs,The University of Leeds,PIN038308,123.1,
DFID,CSC,29/03/2019,Scholar Travel,Award Costs,The University of Leeds,PIN038308,4255.29,
DFID,CSC,29/03/2019,Consulting Fees,Programme Costs,Shaw Trust Ltd,PIN039810,856.8,
DFID,CSC,29/03/2019,Consulting Fees,Programme Costs,Shaw Trust Ltd,PIN039810,4284,
DFID,CSC,29/03/2019,Scholar Engagement,Programme Costs,The Open University,PIN039811,12500,
BEIS,CSC,29/03/2019,Award Support Costs,Award Costs,University of Oxford,PIN039816,2500,
BEIS,CSC,29/03/2019,Award Support Costs,Award Costs,The University of Edinburgh,PIN039817,2500,
BEIS,CSC,29/03/2019,Award Support Costs,Award Costs,University of Liverpool,PIN039818,2500,
BEIS,CSC,29/03/2019,Award Support Costs,Award Costs,The University of York,PIN039819,2500,
BEIS,CSC,29/03/2019,Award Support Costs,Award Costs,The University of Nottingham,PIN039820,2500,
DFID,CSC,26/03/2019,Alumni Engagement,Programme Costs,Amex,NOM000828,504.53,
DFID,CSC,29/03/2019,Alumni Engagement,Programme Costs,Amex,NOM000833,509.19,
DFID,CSC,29/03/2019,Alumni Engagement,Programme Costs,Amex,NOM000834,520,
DFID,CSC,29/03/2019,Alumni Engagement,Programme Costs,Amex,NOM000835,522.96,
DFID,CSC,07/03/2019,Engagement,Programme Costs,NatWest CC,NOM000836,177,
DFID,CSC,07/03/2019,Engagement,Programme Costs,NatWest CC,NOM000836,148.9,
DFID,CSC,07/03/2019,Engagement,Programme Costs,NatWest CC,NOM000836,138,
DFID,CSC,07/03/2019,Scholar Engagement,Programme Costs,NatWest CC,NOM000836,203,
DFID,CSC,07/03/2019,Scholar Engagement,Programme Costs,NatWest CC,NOM000836,349,
DFID,CSC,07/03/2019,Engagement,Programme Costs,NatWest CC,NOM000836,60.65,
DFID,CSC,07/03/2019,Engagement,Programme Costs,NatWest CC,NOM000836,91.1,
DFID,CSC,07/03/2019,Scholar Engagement,Programme Costs,NatWest CC,NOM000836,104.8,
DFID,CSC,07/03/2019,Scholar Engagement,Programme Costs,NatWest CC,NOM000836,40,
DFID,CSC,07/03/2019,Engagement,Programme Costs,NatWest CC,NOM000836,45.58,
DFID,CSC,07/03/2019,Engagement,Programme Costs,NatWest CC,NOM000836,34.25,
DFID,CSC,07/03/2019,Engagement,Programme Costs,NatWest CC,NOM000836,5.4,
DFID,CSC,07/03/2019,Scholar Engagement,Programme Costs,NatWest CC,NOM000836,83.7,
DFID,CSC,07/03/2019,Engagement,Programme Costs,NatWest CC,NOM000836,28.15,
DFID,CSC,07/03/2019,Secretariat Travel,Programme Costs,NatWest CC,NOM000836,77.6,
DFID,CSC,07/03/2019,Scholar Engagement,Programme Costs,NatWest CC,NOM000836,71.02,
DFID,CSC,07/03/2019,Scholar Engagement,Programme Costs,NatWest CC,NOM000836,273.5,
DFID,CSC,07/03/2019,Engagement,Programme Costs,NatWest CC,NOM000836,20.01,
DFID,CSC,29/03/2019,Alumni Engagement,Programme Costs,Amex,NOM000837,867.87,
DFID,CSC,29/03/2019,Alumni Engagement,Programme Costs,Amex,NOM000837,523.17,
DFID,CSC,05/03/2019,Tuition Fee,Award Costs,University of Aberdeen,PRF000129,-675.6,
